Workbook

Sheet Input
A1: INPUT
C5: Timeline and Flags | D5: Unit | E5: Var 1 | F5: Var 2 | G5: Var 3 | H5: Explanatory | I5: Row Sum | J5: Actual | K5: Actual | L5: Actual | M5: Actual | N5: Actual | O5: Actual | P5: Actual | Q5: Forecast | R5: Bridge | S5: Test | T5: Forecast | U5: Forecast | V5: Forecast | W5: Forecast
C6: Calendar Year | J6: 2011 | K6: 2012 | L6: 2013 | M6: 2014 | N6: 2015 | O6: 2016 | P6: 2017 | Q6: 2018 | R6: 2019 | S6: 2020 | T6: 2021 | U6: 2022 | V6: 2023 | W6: 2024
A8: General, Mappings, Customer, Volume and Demand
C10: General
C12: Months in a Year | D12: month / year | E12: 12
C13: Half Period | E13: 0.5
C14: LEAP Funding | D14: % | E14: 0.0012
C16: Mapping of Rate Classes and Asset Groups
C18: Mapping of Rate Classes, Rate Classes and Cost Allocation Classes, Rate Groups
C20: Rate Class
C21: Rate 1 - Residential
C22: Rate 1 - Commercial
C23: Rate 1 - Industrial
C24: Rate 2
C25: Rate 3
C26: Rate 4
C27: Rate 5
C28: Rate 6
C30: Cost Allocation Class | E30: Rate Class (Mapped To)
C31: Rate 1 - Residential | E31: Rate 1 - Residential
C32: Rate 1 - Commercial | E32: Rate 1 - Commercial
C33: Rate 1 - Industrial | E33: Rate 1 - Industrial
C34: Rate 2 | E34: Rate 2
C35: Rate 3 | E35: Rate 3
C36: Rate 4 | E36: Rate 4
C37: Rate 5 | E37: Rate 5
C38: Rate 6 - Allocated | E38: Rate 6
C39: Rate 6 - Direct Assigned | E39: Rate 6
C41: Rate Group | E41: Rate Class (Mapped To) | F41: Cost Allocation Class (Mapped To)
C42: Rate 1 - Residential | E42: =INDEX($E$31:$E$39,MATCH($F42,$C$31:$C$39,0),1) -> Rate 1 - Residential | F42: Rate 1 - Residential
C43: Rate 1 - Commercial | E43: Rate 1 - Commercial | F43: Rate 1 - Commercial
C44: Rate 1 - Industrial | E44: Rate 1 - Industrial | F44: Rate 1 - Industrial
C45: Rate 2 - Apr to Oct | E45: Rate 2 | F45: Rate 2
C46: Rate 2 - Nov to Mar | E46: Rate 2 | F46: Rate 2
C47: Rate 3 | E47: Rate 3 | F47: Rate 3
C48: Rate 4 - Apr to Dec | E48: Rate 4 | F48: Rate 4
C49: Rate 4 - Jan to Mar | E49: Rate 4 | F49: Rate 4
C50: Rate 5 | E50: Rate 5 | F50: Rate 5
C51: Rate 6 | E51: Rate 6 | F51: Rate 6 - Allocated
C53: Mapping of Asset Groups to USoA
C55: USoA Number | E55: USoA
C56: 401 | E56: Frachises and Consents
C57: 461 | E57: Land Rights - Transmission
C58: 465 | E58: Mains - Transmission
C59: 467 | E59: Measuring and Regulating Equipment - Transmission
C60: 471 | E60: Land Rights - Distribution
C61: 472 | E61: Structures and Improvements - Distribution
C62: 473 | E62: Services
C63: 474 | E63: Regulators and Meter Installations
C64: 475 | E64: Mains - Distribution
C65: 476 | E65: Compressor Equipment
C66: 477 | E66: Measuring and Regulating Equipment - Distribution
C67: 478 | E67: Meter
C68: 480 | E68: Land
C69: 482 | E69: Structures and Improvements - General
C70: 483 | E70: Office Furniture and Equipment
C71: 484 | E71: Transportation Equipment
C72: 485 | E72: Heavy Work Equipment
C73: 486 | E73: Tools and Work Equipment
C74: 488 | E74: Communication Structures and Equipment
C75: 490 | E75: Computer Hardware
C76: 491 | E76: Computer Application Software
C77: 475b | E77: Mains - IGPC
C78: 478b | E78: Meter - IGPC
C79: USoA 24
C80: USoA 25
C82: New Asset Group | E82: Depreciation Rate | F82: Depreciation Method | G82: CCA Class | H82: New Asset Group Number | I82: USoA # | J82: USoA Description
C83: Land | D83: =INDEX($C$139:$C$168,MATCH(C83,$E$139:$E$168,0),1) -> Land | E83: 0 | F83: Straightline | H83: 48000 | I83: =IFERROR(VALUE(LEFT(H83,3)),0) -> 480 | J83: =IFERROR(INDEX($E$56:$E$80,MATCH($I83,$C$56:$C$80,0)),0) -> Land
C84: Structures & Improvements - General Plant | D84: =INDEX($C$139:$C$168,MATCH(C84,$E$139:$E$168,0),1) -> Building | E84: 0.01920122888 | F84: Straightline | G84: Class 1 | H84: 48200 | I84: 482 | J84: Structures and Improvements - General
C85: Furnishing / Office Equipment | D85: Furniture & Fixtures | E85: 0.06666666667 | F85: Straightline | G85: Class 8 | H85: 48300 | I85: 483 | J85: Office Furniture and Equipment
C86: Computer Equipment | D86: Computer Hardware | E86: 0.25 | F86: Straightline | G86: Class 50 | H86: 49000 | I86: 490 | J86: Computer Hardware
C87: Software - Acquired | D87: Computer Software | E87: 0.1 | F87: Straightline | G87: Class 12 | H87: 49100 | I87: 491 | J87: Computer Application Software
C88: Tools and Work Equipment | D88: Machinery & Equipment | E88: 0.06666666667 | F88: Straightline | G88: Class 8 | H88: 48600 | I88: 486 | J88: Tools and Work Equipment
C89: Communications Equipment - Hardware | D89: Communication Equipment | E89: 0.06666666667 | F89: Straightline | G89: Class 8 | H89: 48800 | I89: 488 | J89: Communication Structures and Equipment
C90: Vehicles - Transportation Equipment (ENGLP) | D90: Automotive Equipment - Transport Vehicles | E90: 0.166 | F90: Straightline | G90: Class 10 | H90: 48400 | I90: 484 | J90: Transportation Equipment
C91: Vehicle - Heavy Work Equipment | D91: Automotive Equipment - Heavy Equipment | E91: 0.06920415225 | F91: Straightline | G91: Class 10 | H91: 48500 | I91: 485 | J91: Heavy Work Equipment
C92: Meters - Residential | D92: Meters - Resendential | E92: 0.1 | F92: Straightline | G92: Class 51 | H92: 47800 | I92: 478 | J92: Meter
C93: Meters - Commercial | D93: Meters - Commercial | E93: 0.05 | F93: Straightline | G93: Class 51 | H93: 47801 | I93: 478 | J93: Meter
C94: Meter - IGPC New | D94: Meter - IGPC | E94: 0.1666666667 | F94: Straightline | G94: Class 51 | H94: 47800 | I94: 478b | J94: Meter - IGPC
C95: Regulators - New | D95: Regulators - New | E95: 0.05 | F95: Straightline | G95: Class 51 | H95: 47400 | I95: 474 | J95: Regulators and Meter Installations
C96: Measuring and Regulating Equipment | D96: Regulators | E96: 0.03660322108 | F96: Straightline | G96: Class 51 | H96: 47700 | I96: 477 | J96: Measuring and Regulating Equipment - Distribution
C97: Mains - Plastic (Distribution Plant) | D97: Plastic Mains - Distribution | E97: 0.0231000231 | F97: Straightline | G97: Class 51 | H97: 47502 | I97: 475 | J97: Mains - Distribution
C98: Mains - Metallic (Distribution Plant) | D98: Steel Mains - Distribution | E98: 0.02829654782 | F98: Straightline | G98: Class 51 | H98: 47501 | I98: 475 | J98: Mains - Distribution
C99: Mains - Metallic (IGPC) | D99: Ethanol Pipeline - IGPC Project | E99: 0.01979805979 | F99: Straightline | G99: Class 51 | H99: 47501 | I99: 475b | J99: Mains - IGPC
C100: Services - Plastic | D100: Plastic Service Lines | E100: 0.02510040161 | F100: Straightline | G100: Class 51 | H100: 47302 | I100: 473 | J100: Services
C101: Franchises & Consents - Legacy | D101: Other Assets - Legacy | E101: 0.048 | F101: Straightline | G101: Class 14.1 | H101: 40100 | I101: 401 | J101: Frachises and Consents
C102: Franchises & Consents | D102: Other Assets | E102: 0.05 | F102: Straightline | G102: Class 14.1 | H102: 40101 | I102: 401 | J102: Frachises and Consents
C103: Vehicles - Legacy New | D103: Vehicles - Legacy | E103: =1/6.02 -> 0.1661129568 | F103: Straightline | G103: Class 10 | H103: 48400 | I103: 484 | J103: Transportation Equipment
C104: New Asset Group 22 | I104: 0 | J104: 0
C105: New Asset Group 23 | I105: 0 | J105: 0
C106: New Asset Group 24 | I106: 0 | J106: 0
C107: New Asset Group 25 | I107: 0 | J107: 0
C109: Existing Asset Group | E109: Depreciation Rate | F109: Depreciation Method | G109: CCA Class | H109: Asset Group Number | I109: USoA # | J109: USoA Description
C110: Land | E110: 0 | F110: Straightline | H110: 48000 | I110: =IFERROR(VALUE(LEFT(H110,3)),0) -> 480 | J110: =IFERROR(INDEX($E$56:$E$80,MATCH($I110,$C$56:$C$80,0)),0) -> Land
C111: Building | E111: 0.0222 | F111: Straightline | G111: Class 1 | H111: 48200 | I111: =IFERROR(VALUE(LEFT(H111,3)),0) -> 482 | J111: Structures and Improvements - General
C112: Furniture & Fixtures | E112: 0.0675 | F112: Straightline | G112: Class 8 | H112: 48300 | I112: 483 | J112: Office Furniture and Equipment
C113: Computer Hardware | E113: 0.3333 | F113: Declining Balance | G113: Class 50 | H113: 49000 | I113: 490 | J113: Computer Hardware
C114: Computer Software | E114: 0.2 | F114: Declining Balance | G114: Class 12 | H114: 49100 | I114: 491 | J114: Computer Application Software
C115: Machinery & Equipment | E115: 0.0922 | F115: Declining Balance | G115: Class 8 | H115: 48600 | I115: 486 | J115: Tools and Work Equipment
C116: Communication Equipment | E116: 0.0773 | F116: Straightline | G116: Class 8 | H116: 48800 | I116: 488 | J116: Communication Structures and Equipment
C117: Automotive Equipment - Transport Vehicles | E117: 0.166 | F117: Straightline | G117: Class 10 | H117: 48400 | I117: 484 | J117: Transportation Equipment
C118: Meters - Resendential | E118: 0.0362 | F118: Straightline | G118: Class 51 | H118: 47800 | I118: 478 | J118: Meter
C119: Meter - IGPC | E119: 0.03623188406 | F119: Straightline | G119: Class 51 | H119: 47800 | I119: 478b | J119: Meter - IGPC
C120: Regulators | E120: 0.0367 | F120: Straightline | G120: Class 51 | H120: 47400 | I120: 474 | J120: Regulators and Meter Installations
C121: Meters - Commercial | E121: 0.0362 | F121: Straightline | G121: Class 51 | H121: 47800 | I121: 478 | J121: Meter
C122: Plastic Mains - Distribution | E122: 0.0323996 | F122: Straightline | G122: Class 51 | H122: 47502 | I122: =IFERROR(VALUE(LEFT(H122,3)),0) -> 475 | J122: Mains - Distribution
C123: Steel Mains - Distribution | E123: 0.1345 | F123: Straightline | G123: Class 51 | H123: 47501 | I123: =IFERROR(VALUE(LEFT(H123,3)),0) -> 475 | J123: Mains - Distribution
C124: Ethanol Pipeline - IGPC Project | E124: 0.05 | F124: Straightline | G124: Class 51 | H124: 47501 | I124: 475b | J124: Mains - IGPC
C125: Plastic Service Lines | E125: 0.0333 | F125: Straightline | G125: Class 51 | H125: 47302 | I125: =IFERROR(VALUE(LEFT(H125,3)),0) -> 473 | J125: Services
C126: Other Assets - Legacy | E126: 0.048 | F126: Straightline | G126: Class 14.1 | H126: 40100 | I126: 401 | J126: Frachises and Consents
C127: Other Assets | E127: 0.05 | F127: Straightline | G127: Class 14.1 | H127: 40101 | I127: 401 | J127: Frachises and Consents
C128: Vehicles - Legacy | E128: 0.1661129568 | F128: Straightline | G128: Class 10 | H128: 48400 | I128: 484 | J128: Transportation Equipment
C129: Automotive Equipment - Heavy Equipment | E129: 0.166 | F129: Straightline | G129: Class 10 | H129: 48400 | I129: 484 | J129: Transportation Equipment
C130: Regulators - New | E130: 0.03669724771 | F130: Straightline | G130: Class 51 | H130: 47400 | I130: 474 | J130: Regulators and Meter Installations
C131: Existing Asset Group 22 | I131: 0 | J131: 0
C132: Existing Asset Group 23 | I132: 0 | J132: 0
C133: Existing Asset Group 24 | I133: 0 | J133: 0
C134: Existing Asset Group 25 | I134: 0 | J134: 0
C136: Transfer of Assets from Existing Asset Groups to New Asset Groups in 2020
C138: Existing Asset Group (Transfer from) | E138: New Asset Group (Transfer to) | F138: % of Transfer | G138: Closing G. Asset Value with Adjsutments Incl. CIAC Trans. ($) | H138: Closing A.D. with Adjustments Incl. CIAC Trans. ($) | I138: Closing G. Asset Value of CIAC Trans. ($) | J138: Closing A.D. of CIAC Trans. ($)
C139: Land | E139: Land | F139: 1 | G139: =IFERROR(INDEX(Calculation!$R$1250:$R$1274,MATCH($C139,Calculation!$C$1250:$C$1274,0),1),0)*$F139 -> 122700.43 | H139: =IFERROR(INDEX(Calculation!$R$1364:$R$1388,MATCH($C139,Calculation!$C$1364:$C$1388,0),1),0)*$F139 -> 0 | I139: =IFERROR(INDEX(Calculation!$R$1539:$R$1563,MATCH($C139,Calculation!$C$1539:$C$1563,0),1),0)*$F139 -> 0 | J139: =IFERROR(INDEX(Calculation!$R$1653:$R$1677,MATCH($C139,Calculation!$C$1653:$C$1677,0),1),0)*$F139 -> 0
C140: Building | E140: Structures & Improvements - General Plant | F140: 1 | G140: =IFERROR(INDEX(Calculation!$R$1250:$R$1274,MATCH($C140,Calculation!$C$1250:$C$1274,0),1),0)*$F140 -> 730632.78 | H140: =IFERROR(INDEX(Calculation!$R$1364:$R$1388,MATCH($C140,Calculation!$C$1364:$C$1388,0),1),0)*$F140 -> -294516.6181 | I140: =IFERROR(INDEX(Calculation!$R$1539:$R$1563,MATCH($C140,Calculation!$C$1539:$C$1563,0),1),0)*$F140 -> 0 | J140: =IFERROR(INDEX(Calculation!$R$1653:$R$1677,MATCH($C140,Calculation!$C$1653:$C$1677,0),1),0)*$F140 -> 0
C141: Furniture & Fixtures | E141: Furnishing / Office Equipment | F141: 1 | G141: =IFERROR(INDEX(Calculation!$R$1250:$R$1274,MATCH($C141,Calculation!$C$1250:$C$1274,0),1),0)*$F141 -> 112535.84 | H141: =IFERROR(INDEX(Calculation!$R$1364:$R$1388,MATCH($C141,Calculation!$C$1364:$C$1388,0),1),0)*$F141 -> -107176.678 | I141: =IFERROR(INDEX(Calculation!$R$1539:$R$1563,MATCH($C141,Calculation!$C$1539:$C$1563,0),1),0)*$F141 -> 0 | J141: =IFERROR(INDEX(Calculation!$R$1653:$R$1677,MATCH($C141,Calculation!$C$1653:$C$1677,0),1),0)*$F141 -> 0
C142: Computer Hardware | E142: Computer Equipment | F142: 1 | G142: =IFERROR(INDEX(Calculation!$R$1250:$R$1274,MATCH($C142,Calculation!$C$1250:$C$1274,0),1),0)*$F142 -> 247739.06 | H142: =IFERROR(INDEX(Calculation!$R$1364:$R$1388,MATCH($C142,Calculation!$C$1364:$C$1388,0),1),0)*$F142 -> -145698.6262 | I142: =IFERROR(INDEX(Calculation!$R$1539:$R$1563,MATCH($C142,Calculation!$C$1539:$C$1563,0),1),0)*$F142 -> 0 | J142: =IFERROR(INDEX(Calculation!$R$1653:$R$1677,MATCH($C142,Calculation!$C$1653:$C$1677,0),1),0)*$F142 -> 0
C143: Computer Software | E143: Software - Acquired | F143: 1 | G143: =IFERROR(INDEX(Calculation!$R$1250:$R$1274,MATCH($C143,Calculation!$C$1250:$C$1274,0),1),0)*$F143 -> 580855.4525 | H143: =IFERROR(INDEX(Calculation!$R$1364:$R$1388,MATCH($C143,Calculation!$C$1364:$C$1388,0),1),0)*$F143 -> -208850.5188 | I143: =IFERROR(INDEX(Calculation!$R$1539:$R$1563,MATCH($C143,Calculation!$C$1539:$C$1563,0),1),0)*$F143 -> 0 | J143: =IFERROR(INDEX(Calculation!$R$1653:$R$1677,MATCH($C143,Calculation!$C$1653:$C$1677,0),1),0)*$F143 -> 0
C144: Machinery & Equipment | E144: Tools and Work Equipment | F144: 1 | G144: =IFERROR(INDEX(Calculation!$R$1250:$R$1274,MATCH($C144,Calculation!$C$1250:$C$1274,0),1),0)*$F144 -> 761545.99 | H144: =IFERROR(INDEX(Calculation!$R$1364:$R$1388,MATCH($C144,Calculation!$C$1364:$C$1388,0),1),0)*$F144 -> -564461.9193 | I144: =IFERROR(INDEX(Calculation!$R$1539:$R$1563,MATCH($C144,Calculation!$C$1539:$C$1563,0),1),0)*$F144 -> 0 | J144: =IFERROR(INDEX(Calculation!$R$1653:$R$1677,MATCH($C144,Calculation!$C$1653:$C$1677,0),1),0)*$F144 -> 0
C145: Communication Equipment | E145: Communications Equipment - Hardware | F145: 1 | G145: =IFERROR(INDEX(Calculation!$R$1250:$R$1274,MATCH($C145,Calculation!$C$1250:$C$1274,0),1),0)*$F145 -> 231088.7775 | H145: =IFERROR(INDEX(Calculation!$R$1364:$R$1388,MATCH($C145,Calculation!$C$1364:$C$1388,0),1),0)*$F145 -> -184513.4917 | I145: =IFERROR(INDEX(Calculation!$R$1539:$R$1563,MATCH($C145,Calculation!$C$1539:$C$1563,0),1),0)*$F145 -> 0 | J145: =IFERROR(INDEX(Calculation!$R$1653:$R$1677,MATCH($C145,Calculation!$C$1653:$C$1677,0),1),0)*$F145 -> 0
C146: Automotive Equipment - Transport Vehicles | E146: Vehicles - Transportation Equipment (ENGLP) | F146: 1 | G146: =IFERROR(INDEX(Calculation!$R$1250:$R$1274,MATCH($C146,Calculation!$C$1250:$C$1274,0),1),0)*$F146 -> 215040.6 | H146: =IFERROR(INDEX(Calculation!$R$1364:$R$1388,MATCH($C146,Calculation!$C$1364:$C$1388,0),1),0)*$F146 -> -35617.1094 | I146: =IFERROR(INDEX(Calculation!$R$1539:$R$1563,MATCH($C146,Calculation!$C$1539:$C$1563,0),1),0)*$F146 -> 0 | J146: =IFERROR(INDEX(Calculation!$R$1653:$R$1677,MATCH($C146,Calculation!$C$1653:$C$1677,0),1),0)*$F146 -> 0
C147: Automotive Equipment - Heavy Equipment | E147: Vehicle - Heavy Work Equipment | F147: 1 | G147: =IFERROR(INDEX(Calculation!$R$1250:$R$1274,MATCH($C147,Calculation!$C$1250:$C$1274,0),1),0)*$F147 -> 0 | H147: =IFERROR(INDEX(Calculation!$R$1364:$R$1388,MATCH($C147,Calculation!$C$1364:$C$1388,0),1),0)*$F147 -> 0 | I147: =IFERROR(INDEX(Calculation!$R$1539:$R$1563,MATCH($C147,Calculation!$C$1539:$C$1563,0),1),0)*$F147 -> 0 | J147: =IFERROR(INDEX(Calculation!$R$1653:$R$1677,MATCH($C147,Calculation!$C$1653:$C$1677,0),1),0)*$F147 -> 0
C148: Meters - Resendential | E148: Meters - Residential | F148: 1 | G148: =IFERROR(INDEX(Calculation!$R$1250:$R$1274,MATCH($C148,Calculation!$C$1250:$C$1274,0),1),0)*$F148 -> 1798371.01 | H148: =IFERROR(INDEX(Calculation!$R$1364:$R$1388,MATCH($C148,Calculation!$C$1364:$C$1388,0),1),0)*$F148 -> -756871.1929 | I148: =IFERROR(INDEX(Calculation!$R$1539:$R$1563,MATCH($C148,Calculation!$C$1539:$C$1563,0),1),0)*$F148 -> 0 | J148: =IFERROR(INDEX(Calculation!$R$1653:$R$1677,MATCH($C148,Calculation!$C$1653:$C$1677,0),1),0)*$F148 -> 0
C149: Meters - Commercial | E149: Meters - Commercial | F149: 1 | G149: =IFERROR(INDEX(Calculation!$R$1250:$R$1274,MATCH($C149,Calculation!$C$1250:$C$1274,0),1),0)*$F149 -> 1321632.93 | H149: =IFERROR(INDEX(Calculation!$R$1364:$R$1388,MATCH($C149,Calculation!$C$1364:$C$1388,0),1),0)*$F149 -> -752235.8866 | I149: =IFERROR(INDEX(Calculation!$R$1539:$R$1563,MATCH($C149,Calculation!$C$1539:$C$1563,0),1),0)*$F149 -> 0 | J149: =IFERROR(INDEX(Calculation!$R$1653:$R$1677,MATCH($C149,Calculation!$C$1653:$C$1677,0),1),0)*$F149 -> 0
C150: Meter - IGPC | E150: Meter - IGPC New | F150: 1 | G150: =IFERROR(INDEX(Calculation!$R$1250:$R$1274,MATCH($C150,Calculation!$C$1250:$C$1274,0),1),0)*$F150 -> 14139.4 | H150: =IFERROR(INDEX(Calculation!$R$1364:$R$1388,MATCH($C150,Calculation!$C$1364:$C$1388,0),1),0)*$F150 -> -6020.401916 | I150: =IFERROR(INDEX(Calculation!$R$1539:$R$1563,MATCH($C150,Calculation!$C$1539:$C$1563,0),1),0)*$F150 -> 0 | J150: =IFERROR(INDEX(Calculation!$R$1653:$R$1677,MATCH($C150,Calculation!$C$1653:$C$1677,0),1),0)*$F150 -> 0
C151: Regulators | E151: Measuring and Regulating Equipment | F151: 1 | G151: =IFERROR(INDEX(Calculation!$R$1250:$R$1274,MATCH($C151,Calculation!$C$1250:$C$1274,0),1),0)*$F151 -> 2026624.39 | H151: =IFERROR(INDEX(Calculation!$R$1364:$R$1388,MATCH($C151,Calculation!$C$1364:$C$1388,0),1),0)*$F151 -> -1279851.652 | I151: =IFERROR(INDEX(Calculation!$R$1539:$R$1563,MATCH($C151,Calculation!$C$1539:$C$1563,0),1),0)*$F151 -> 0 | J151: =IFERROR(INDEX(Calculation!$R$1653:$R$1677,MATCH($C151,Calculation!$C$1653:$C$1677,0),1),0)*$F151 -> 0
C152: Plastic Mains - Distribution | E152: Mains - Plastic (Distribution Plant) | F152: 1 | G152: =IFERROR(INDEX(Calculation!$R$1250:$R$1274,MATCH($C152,Calculation!$C$1250:$C$1274,0),1),0)*$F152 -> 13125196.8 | H152: =IFERROR(INDEX(Calculation!$R$1364:$R$1388,MATCH($C152,Calculation!$C$1364:$C$1388,0),1),0)*$F152 -> -5912724.274 | I152: =IFERROR(INDEX(Calculation!$R$1539:$R$1563,MATCH($C152,Calculation!$C$1539:$C$1563,0),1),0)*$F152 -> 4000 | J152: =IFERROR(INDEX(Calculation!$R$1653:$R$1677,MATCH($C152,Calculation!$C$1653:$C$1677,0),1),0)*$F152 -> -194.3976
C153: Steel Mains - Distribution | E153: Mains - Metallic (Distribution Plant) | F153: 1 | G153: =IFERROR(INDEX(Calculation!$R$1250:$R$1274,MATCH($C153,Calculation!$C$1250:$C$1274,0),1),0)*$F153 -> 33014.16 | H153: =IFERROR(INDEX(Calculation!$R$1364:$R$1388,MATCH($C153,Calculation!$C$1364:$C$1388,0),1),0)*$F153 -> -33014.16 | I153: =IFERROR(INDEX(Calculation!$R$1539:$R$1563,MATCH($C153,Calculation!$C$1539:$C$1563,0),1),0)*$F153 -> 0 | J153: =IFERROR(INDEX(Calculation!$R$1653:$R$1677,MATCH($C153,Calculation!$C$1653:$C$1677,0),1),0)*$F153 -> 0
C154: Ethanol Pipeline - IGPC Project | E154: Mains - Metallic (IGPC) | F154: 1 | G154: =IFERROR(INDEX(Calculation!$R$1250:$R$1274,MATCH($C154,Calculation!$C$1250:$C$1274,0),1),0)*$F154 -> 7128086.29 | H154: =IFERROR(INDEX(Calculation!$R$1364:$R$1388,MATCH($C154,Calculation!$C$1364:$C$1388,0),1),0)*$F154 -> -2884022.111 | I154: =IFERROR(INDEX(Calculation!$R$1539:$R$1563,MATCH($C154,Calculation!$C$1539:$C$1563,0),1),0)*$F154 -> 589659 | J154: =IFERROR(INDEX(Calculation!$R$1653:$R$1677,MATCH($C154,Calculation!$C$1653:$C$1677,0),1),0)*$F154 -> -17424.425
C155: Plastic Service Lines | E155: Services - Plastic | F155: 1 | G155: =IFERROR(INDEX(Calculation!$R$1250:$R$1274,MATCH($C155,Calculation!$C$1250:$C$1274,0),1),0)*$F155 -> 4132018.69 | H155: =IFERROR(INDEX(Calculation!$R$1364:$R$1388,MATCH($C155,Calculation!$C$1364:$C$1388,0),1),0)*$F155 -> -2867263.061 | I155: =IFERROR(INDEX(Calculation!$R$1539:$R$1563,MATCH($C155,Calculation!$C$1539:$C$1563,0),1),0)*$F155 -> 122554.31 | J155: =IFERROR(INDEX(Calculation!$R$1653:$R$1677,MATCH($C155,Calculation!$C$1653:$C$1677,0),1),0)*$F155 -> -4396.976146
C156: Other Assets - Legacy | E156: Franchises & Consents - Legacy | F156: 1 | G156: =IFERROR(INDEX(Calculation!$R$1250:$R$1274,MATCH($C156,Calculation!$C$1250:$C$1274,0),1),0)*$F156 -> 373537.76 | H156: =IFERROR(INDEX(Calculation!$R$1364:$R$1388,MATCH($C156,Calculation!$C$1364:$C$1388,0),1),0)*$F156 -> -226082.467 | I156: =IFERROR(INDEX(Calculation!$R$1539:$R$1563,MATCH($C156,Calculation!$C$1539:$C$1563,0),1),0)*$F156 -> 0 | J156: =IFERROR(INDEX(Calculation!$R$1653:$R$1677,MATCH($C156,Calculation!$C$1653:$C$1677,0),1),0)*$F156 -> 0
C157: Other Assets | E157: Franchises & Consents | F157: 1 | G157: =IFERROR(INDEX(Calculation!$R$1250:$R$1274,MATCH($C157,Calculation!$C$1250:$C$1274,0),1),0)*$F157 -> 394324.7 | H157: =IFERROR(INDEX(Calculation!$R$1364:$R$1388,MATCH($C157,Calculation!$C$1364:$C$1388,0),1),0)*$F157 -> -155044.7162 | I157: =IFERROR(INDEX(Calculation!$R$1539:$R$1563,MATCH($C157,Calculation!$C$1539:$C$1563,0),1),0)*$F157 -> 0 | J157: =IFERROR(INDEX(Calculation!$R$1653:$R$1677,MATCH($C157,Calculation!$C$1653:$C$1677,0),1),0)*$F157 -> 0
C158: Vehicles - Legacy | E158: Vehicles - Legacy New | F158: 1 | G158: =IFERROR(INDEX(Calculation!$R$1250:$R$1274,MATCH($C158,Calculation!$C$1250:$C$1274,0),1),0)*$F158 -> 314336.02 | H158: =IFERROR(INDEX(Calculation!$R$1364:$R$1388,MATCH($C158,Calculation!$C$1364:$C$1388,0),1),0)*$F158 -> -289930.2507 | I158: =IFERROR(INDEX(Calculation!$R$1539:$R$1563,MATCH($C158,Calculation!$C$1539:$C$1563,0),1),0)*$F158 -> 0 | J158: =IFERROR(INDEX(Calculation!$R$1653:$R$1677,MATCH($C158,Calculation!$C$1653:$C$1677,0),1),0)*$F158 -> 0 | K158: vehicles inheritage from ENRG with various asset lives
C159: Regulators - New | E159: Regulators - New | F159: 1 | G159: =IFERROR(INDEX(Calculation!$R$1250:$R$1274,MATCH($C159,Calculation!$C$1250:$C$1274,0),1),0)*$F159 -> 71000 | H159: =IFERROR(INDEX(Calculation!$R$1364:$R$1388,MATCH($C159,Calculation!$C$1364:$C$1388,0),1),0)*$F159 -> -1302.752294 | I159: =IFERROR(INDEX(Calculation!$R$1539:$R$1563,MATCH($C159,Calculation!$C$1539:$C$1563,0),1),0)*$F159 -> 0 | J159: =IFERROR(INDEX(Calculation!$R$1653:$R$1677,MATCH($C159,Calculation!$C$1653:$C$1677,0),1),0)*$F159 -> 0
G160: =IFERROR(INDEX(Calculation!$R$1250:$R$1274,MATCH($C160,Calculation!$C$1250:$C$1274,0),1),0)*$F160 -> 0 | H160: =IFERROR(INDEX(Calculation!$R$1364:$R$1388,MATCH($C160,Calculation!$C$1364:$C$1388,0),1),0)*$F160 -> 0 | I160: =IFERROR(INDEX(Calculation!$R$1539:$R$1563,MATCH($C160,Calculation!$C$1539:$C$1563,0),1),0)*$F160 -> 0 | J160: =IFERROR(INDEX(Calculation!$R$1653:$R$1677,MATCH($C160,Calculation!$C$1653:$C$1677,0),1),0)*$F160 -> 0
G161: =IFERROR(INDEX(Calculation!$R$1250:$R$1274,MATCH($C161,Calculation!$C$1250:$C$1274,0),1),0)*$F161 -> 0 | H161: =IFERROR(INDEX(Calculation!$R$1364:$R$1388,MATCH($C161,Calculation!$C$1364:$C$1388,0),1),0)*$F161 -> 0 | I161: =IFERROR(INDEX(Calculation!$R$1539:$R$1563,MATCH($C161,Calculation!$C$1539:$C$1563,0),1),0)*$F161 -> 0 | J161: =IFERROR(INDEX(Calculation!$R$1653:$R$1677,MATCH($C161,Calculation!$C$1653:$C$1677,0),1),0)*$F161 -> 0
G162: =IFERROR(INDEX(Calculation!$R$1250:$R$1274,MATCH($C162,Calculation!$C$1250:$C$1274,0),1),0)*$F162 -> 0 | H162: =IFERROR(INDEX(Calculation!$R$1364:$R$1388,MATCH($C162,Calculation!$C$1364:$C$1388,0),1),0)*$F162 -> 0 | I162: =IFERROR(INDEX(Calculation!$R$1539:$R$1563,MATCH($C162,Calculation!$C$1539:$C$1563,0),1),0)*$F162 -> 0 | J162: =IFERROR(INDEX(Calculation!$R$1653:$R$1677,MATCH($C162,Calculation!$C$1653:$C$1677,0),1),0)*$F162 -> 0
G163: =IFERROR(INDEX(Calculation!$R$1250:$R$1274,MATCH($C163,Calculation!$C$1250:$C$1274,0),1),0)*$F163 -> 0 | H163: =IFERROR(INDEX(Calculation!$R$1364:$R$1388,MATCH($C163,Calculation!$C$1364:$C$1388,0),1),0)*$F163 -> 0 | I163: =IFERROR(INDEX(Calculation!$R$1539:$R$1563,MATCH($C163,Calculation!$C$1539:$C$1563,0),1),0)*$F163 -> 0 | J163: =IFERROR(INDEX(Calculation!$R$1653:$R$1677,MATCH($C163,Calculation!$C$1653:$C$1677,0),1),0)*$F163 -> 0
G164: =IFERROR(INDEX(Calculation!$R$1250:$R$1274,MATCH($C164,Calculation!$C$1250:$C$1274,0),1),0)*$F164 -> 0 | H164: =IFERROR(INDEX(Calculation!$R$1364:$R$1388,MATCH($C164,Calculation!$C$1364:$C$1388,0),1),0)*$F164 -> 0 | I164: =IFERROR(INDEX(Calculation!$R$1539:$R$1563,MATCH($C164,Calculation!$C$1539:$C$1563,0),1),0)*$F164 -> 0 | J164: =IFERROR(INDEX(Calculation!$R$1653:$R$1677,MATCH($C164,Calculation!$C$1653:$C$1677,0),1),0)*$F164 -> 0
G165: =IFERROR(INDEX(Calculation!$R$1250:$R$1274,MATCH($C165,Calculation!$C$1250:$C$1274,0),1),0)*$F165 -> 0 | H165: =IFERROR(INDEX(Calculation!$R$1364:$R$1388,MATCH($C165,Calculation!$C$1364:$C$1388,0),1),0)*$F165 -> 0 | I165: =IFERROR(INDEX(Calculation!$R$1539:$R$1563,MATCH($C165,Calculation!$C$1539:$C$1563,0),1),0)*$F165 -> 0 | J165: =IFERROR(INDEX(Calculation!$R$1653:$R$1677,MATCH($C165,Calculation!$C$1653:$C$1677,0),1),0)*$F165 -> 0
G166: =IFERROR(INDEX(Calculation!$R$1250:$R$1274,MATCH($C166,Calculation!$C$1250:$C$1274,0),1),0)*$F166 -> 0 | H166: =IFERROR(INDEX(Calculation!$R$1364:$R$1388,MATCH($C166,Calculation!$C$1364:$C$1388,0),1),0)*$F166 -> 0 | I166: =IFERROR(INDEX(Calculation!$R$1539:$R$1563,MATCH($C166,Calculation!$C$1539:$C$1563,0),1),0)*$F166 -> 0 | J166: =IFERROR(INDEX(Calculation!$R$1653:$R$1677,MATCH($C166,Calculation!$C$1653:$C$1677,0),1),0)*$F166 -> 0
G167: =IFERROR(INDEX(Calculation!$R$1250:$R$1274,MATCH($C167,Calculation!$C$1250:$C$1274,0),1),0)*$F167 -> 0 | H167: =IFERROR(INDEX(Calculation!$R$1364:$R$1388,MATCH($C167,Calculation!$C$1364:$C$1388,0),1),0)*$F167 -> 0 | I167: =IFERROR(INDEX(Calculation!$R$1539:$R$1563,MATCH($C167,Calculation!$C$1539:$C$1563,0),1),0)*$F167 -> 0 | J167: =IFERROR(INDEX(Calculation!$R$1653:$R$1677,MATCH($C167,Calculation!$C$1653:$C$1677,0),1),0)*$F167 -> 0
G168: =IFERROR(INDEX(Calculation!$R$1250:$R$1274,MATCH($C168,Calculation!$C$1250:$C$1274,0),1),0)*$F168 -> 0 | H168: =IFERROR(INDEX(Calculation!$R$1364:$R$1388,MATCH($C168,Calculation!$C$1364:$C$1388,0),1),0)*$F168 -> 0 | I168: =IFERROR(INDEX(Calculation!$R$1539:$R$1563,MATCH($C168,Calculation!$C$1539:$C$1563,0),1),0)*$F168 -> 0 | J168: =IFERROR(INDEX(Calculation!$R$1653:$R$1677,MATCH($C168,Calculation!$C$1653:$C$1677,0),1),0)*$F168 -> 0
C171: Customer
C173: Average Customer Count
C174: =C$21 -> Rate 1 - Residential | D174: Cx | P174: 8109.5 | Q174: 8363.441772 | R174: 8616.420397 | S174: 8877
C175: =C$22 -> Rate 1 - Commercial | D175: Cx | P175: 461.5833333 | Q175: 476.7715986 | R175: 485.2717626 | S175: 494
C176: =C$23 -> Rate 1 - Industrial | D176: Cx | P176: 65.83333333 | Q176: 66.58333333 | R176: 67.4882642 | S176: 68
C177: =C$24 -> Rate 2 | D177: Cx | P177: 54.75 | Q177: 53.29474416 | R177: 51.64995082 | S177: 50
C178: =C$25 -> Rate 3 | D178: Cx | P178: 4.5 | Q178: 6 | R178: 6 | S178: 6
C179: =C$26 -> Rate 4 | D179: Cx | P179: 35.83333333 | Q179: 36 | R179: 36.9159675 | S179: 38
C180: =C$27 -> Rate 5 | D180: Cx | P180: 4.666666667 | Q180: 4 | R180: 3.902044448 | S180: 4
C181: =C$28 -> Rate 6 | D181: Cx | P181: 1 | Q181: 1 | R181: 1 | S181: 1
C182: Sum | D182: Cx | P182: =SUM(P174:P181) -> 8737.666667 | Q182: =SUM(Q174:Q181) -> 9007.091448 | R182: =SUM(R174:R181) -> 9268.648386 | S182: =SUM(S174:S181) -> 9538
C184: Average Customer Count
C185: =C$21 -> Rate 1 - Residential | D185: Cx | Q185: 8489.931085 | R185: 8746.710198 | S185: 9011.281983
C186: =C$22 -> Rate 1 - Commercial | D186: Cx | Q186: 481.0216806 | R186: 489.6358813 | S186: 498.3653973
C187: =C$23 -> Rate 1 - Industrial | D187: Cx | Q187: 67.03579877 | R187: 67.7441321 | S187: 68.66483933
C188: =C$24 -> Rate 2 | D188: Cx | Q188: 52.47234749 | R188: 50.82497541 | S188: 49.25640458
C189: =C$25 -> Rate 3 | D189: Cx | Q189: 6 | R189: 6 | S189: 6
C190: =C$26 -> Rate 4 | D190: Cx | Q190: 36.45798375 | R190: 37.45798375 | S190: 38.41104752
C191: =C$27 -> Rate 5 | D191: Cx | Q191: 3.951022224 | R191: 3.951022224 | S191: 3.854266083
C192: =C$28 -> Rate 6 | D192: Cx | Q192: 1 | R192: 1 | S192: 1
C193: Sum | D193: Cx | Q193: =SUM(Q185:Q192) -> 9137.869917 | R193: =SUM(R185:R192) -> 9403.324193 | S193: =SUM(S185:S192) -> 9676.833938
C195: Months in a Year
C196: =C$42 -> Rate 1 - Residential | D196: mth / yr | E196: 12
C197: =C$43 -> Rate 1 - Commercial | D197: mth / yr | E197: 12
C198: =C$44 -> Rate 1 - Industrial | D198: mth / yr | E198: 12
C199: =C$45 -> Rate 2 - Apr to Oct | D199: mth / yr | E199: 7
C200: =C$46 -> Rate 2 - Nov to Mar | D200: mth / yr | E200: 5
C201: =C$47 -> Rate 3 | D201: mth / yr | E201: 12
C202: =C$48 -> Rate 4 - Apr to Dec | D202: mth / yr | E202: 9
C203: =C$49 -> Rate 4 - Jan to Mar | D203: mth / yr | E203: 3
C204: =C$50 -> Rate 5 | D204: mth / yr | E204: 12
C205: =C$51 -> Rate 6 | D205: mth / yr | E205: 12
C207: Customer Year (Bill Determinant)
E208: Rate Class
C209: =C$42 -> Rate 1 - Residential | D209: CxYr | E209: =INDEX($E$42:$E$51,MATCH($C209,$C$42:$C$51,0),1) -> Rate 1 - Residential | P209: =INDEX(P$174:P$181,MATCH($E209,$C$174:$C$181,0),1)*$E196/$E$12 -> 8109.5 | Q209: 8363.441772 | R209: 8616.420397 | S209: 8877
C210: =C$43 -> Rate 1 - Commercial | D210: CxYr | E210: Rate 1 - Commercial | P210: 461.5833333 | Q210: 476.7715986 | R210: 485.2717626 | S210: 494
C211: =C$44 -> Rate 1 - Industrial | D211: CxYr | E211: Rate 1 - Industrial | P211: 65.83333333 | Q211: 66.58333333 | R211: 67.4882642 | S211: 68
C212: =C$45 -> Rate 2 - Apr to Oct | D212: CxYr | E212: Rate 2 | P212: 31.9375 | Q212: 31.08860076 | R212: 30.12913798 | S212: 29.16666667
C213: =C$46 -> Rate 2 - Nov to Mar | D213: CxYr | E213: Rate 2 | P213: 22.8125 | Q213: 22.2061434 | R213: 21.52081284 | S213: 20.83333333
C214: =C$47 -> Rate 3 | D214: CxYr | E214: Rate 3 | P214: 4.5 | Q214: 6 | R214: 6 | S214: 6
C215: =C$48 -> Rate 4 - Apr to Dec | D215: CxYr | E215: Rate 4 | P215: 26.875 | Q215: 27 | R215: 27.68697563 | S215: 28.5
C216: =C$49 -> Rate 4 - Jan to Mar | D216: CxYr | E216: Rate 4 | P216: 8.958333333 | Q216: 9 | R216: 9.228991875 | S216: 9.5
C217: =C$50 -> Rate 5 | D217: CxYr | E217: Rate 5 | P217: 4.666666667 | Q217: 4 | R217: 3.902044448 | S217: 4
C218: =C$51 -> Rate 6 | D218: CxYr | E218: Rate 6 | P218: 1 | Q218: 1 | R218: 1 | S218: 1
C219: Sum | D219: CxYr | P219: =SUM(P209:P218) -> 8737.666667 | Q219: =SUM(Q209:Q218) -> 9007.091448 | R219: =SUM(R209:R218) -> 9268.648386 | S219: =SUM(S209:S218) -> 9538
C221: Cost Allocation Class
E222: Rate Class
C223: =C31 -> Rate 1 - Residential | D223: CxYr | E223: =E31 -> Rate 1 - Residential | P223: =SUMIF($C$174:$C$181,$E223,P$174:P$181) -> 8109.5 | Q223: =SUMIF($C$174:$C$181,$E223,Q$174:Q$181) -> 8363.441772 | R223: 8616.420397 | S223: 8877
C224: Rate 1 - Commercial | D224: CxYr | E224: Rate 1 - Commercial | P224: =SUMIF($C$174:$C$181,$E224,P$174:P$181) -> 461.5833333 | Q224: 476.7715986 | R224: 485.2717626 | S224: 494
... 869 more rows

Sheet Calculation
A1: CALCULATION
C5: Timeline and Flags | D5: Unit | E5: Var 1 | F5: Var 2 | G5: Var 3 | H5: Explanatory | I5: Row Sum | J5: Actual | K5: Actual | L5: Actual | M5: Actual | N5: Actual | O5: Actual | P5: Actual | Q5: Forecast | R5: Bridge | S5: Test | T5: Forecast | U5: Forecast | V5: Forecast | W5: Forecast
J6: 2011 | K6: 2012 | L6: 2013 | M6: 2014 | N6: 2015 | O6: 2016 | P6: 2017 | Q6: 2018 | R6: 2019 | S6: 2020 | T6: 2021 | U6: 2022 | V6: 2023 | W6: 2024
A7: Asset Continuity Schedules by New Asset Group
C9: Continuity Schedule Including Contributed Assets
C11: Gross PP&E
C13: Transfers from Old to New Asset Groups
C14: =Input!$C$83 -> Land | D14: $ | S14: =SUMIF(Input!$E$139:$E$168,$C14,Input!$G$139:$G$168) -> 122700.43
C15: =Input!$C$84 -> Structures & Improvements - General Plant | D15: $ | S15: =SUMIF(Input!$E$139:$E$168,$C15,Input!$G$139:$G$168) -> 730632.78
C16: =Input!$C$85 -> Furnishing / Office Equipment | D16: $ | S16: =SUMIF(Input!$E$139:$E$168,$C16,Input!$G$139:$G$168) -> 112535.84
C17: =Input!$C$86 -> Computer Equipment | D17: $ | S17: =SUMIF(Input!$E$139:$E$168,$C17,Input!$G$139:$G$168) -> 247739.06
C18: =Input!$C$87 -> Software - Acquired | D18: $ | S18: =SUMIF(Input!$E$139:$E$168,$C18,Input!$G$139:$G$168) -> 580855.4525
C19: =Input!$C$88 -> Tools and Work Equipment | D19: $ | S19: =SUMIF(Input!$E$139:$E$168,$C19,Input!$G$139:$G$168) -> 761545.99
C20: =Input!$C$89 -> Communications Equipment - Hardware | D20: $ | S20: =SUMIF(Input!$E$139:$E$168,$C20,Input!$G$139:$G$168) -> 231088.7775
C21: =Input!$C$90 -> Vehicles - Transportation Equipment (ENGLP) | D21: $ | S21: =SUMIF(Input!$E$139:$E$168,$C21,Input!$G$139:$G$168) -> 215040.6
C22: =Input!$C$91 -> Vehicle - Heavy Work Equipment | D22: $ | S22: =SUMIF(Input!$E$139:$E$168,$C22,Input!$G$139:$G$168) -> 0
C23: =Input!$C$92 -> Meters - Residential | D23: $ | S23: =SUMIF(Input!$E$139:$E$168,$C23,Input!$G$139:$G$168) -> 1798371.01
C24: =Input!$C$93 -> Meters - Commercial | D24: $ | S24: =SUMIF(Input!$E$139:$E$168,$C24,Input!$G$139:$G$168) -> 1321632.93
C25: =Input!$C$94 -> Meter - IGPC New | D25: $ | S25: =SUMIF(Input!$E$139:$E$168,$C25,Input!$G$139:$G$168) -> 14139.4
C26: =Input!$C$95 -> Regulators - New | D26: $ | S26: =SUMIF(Input!$E$139:$E$168,$C26,Input!$G$139:$G$168) -> 71000
C27: =Input!$C$96 -> Measuring and Regulating Equipment | D27: $ | S27: =SUMIF(Input!$E$139:$E$168,$C27,Input!$G$139:$G$168) -> 2026624.39
C28: =Input!$C$97 -> Mains - Plastic (Distribution Plant) | D28: $ | S28: =SUMIF(Input!$E$139:$E$168,$C28,Input!$G$139:$G$168) -> 13125196.8
C29: =Input!$C$98 -> Mains - Metallic (Distribution Plant) | D29: $ | S29: =SUMIF(Input!$E$139:$E$168,$C29,Input!$G$139:$G$168) -> 33014.16
C30: =Input!$C$99 -> Mains - Metallic (IGPC) | D30: $ | S30: =SUMIF(Input!$E$139:$E$168,$C30,Input!$G$139:$G$168) -> 7128086.29
C31: =Input!$C$100 -> Services - Plastic | D31: $ | S31: =SUMIF(Input!$E$139:$E$168,$C31,Input!$G$139:$G$168) -> 4132018.69
C32: =Input!$C$101 -> Franchises & Consents - Legacy | D32: $ | S32: =SUMIF(Input!$E$139:$E$168,$C32,Input!$G$139:$G$168) -> 373537.76
C33: =Input!$C$102 -> Franchises & Consents | D33: $ | S33: =SUMIF(Input!$E$139:$E$168,$C33,Input!$G$139:$G$168) -> 394324.7
C34: =Input!$C$103 -> Vehicles - Legacy New | D34: $ | S34: =SUMIF(Input!$E$139:$E$168,$C34,Input!$G$139:$G$168) -> 314336.02
C35: =Input!$C$104 -> New Asset Group 22 | D35: $ | S35: =SUMIF(Input!$E$139:$E$168,$C35,Input!$G$139:$G$168) -> 0
C36: =Input!$C$105 -> New Asset Group 23 | D36: $ | S36: =SUMIF(Input!$E$139:$E$168,$C36,Input!$G$139:$G$168) -> 0
C37: =Input!$C$106 -> New Asset Group 24 | D37: $ | S37: =SUMIF(Input!$E$139:$E$168,$C37,Input!$G$139:$G$168) -> 0
C38: =Input!$C$107 -> New Asset Group 25 | D38: $ | S38: =SUMIF(Input!$E$139:$E$168,$C38,Input!$G$139:$G$168) -> 0
C39: Sum | D39: $ | S39: =SUM(S14:S38) -> 33734421.08
C41: Opening Gross PP&E
C42: =Input!$C$83 -> Land | D42: $ | S42: =R126+S14 -> 122700.43 | T42: =S126+T14 -> 122700.43 | U42: 122700.43 | V42: 122700.43 | W42: 122700.43
C43: =Input!$C$84 -> Structures & Improvements - General Plant | D43: $ | S43: =R127+S15 -> 730632.78 | T43: 761632.78 | U43: 761632.78 | V43: 761632.78 | W43: 761632.78
C44: =Input!$C$85 -> Furnishing / Office Equipment | D44: $ | S44: 112535.84 | T44: 112535.84 | U44: 112535.84 | V44: 112535.84 | W44: 112535.84
C45: =Input!$C$86 -> Computer Equipment | D45: $ | S45: 247739.06 | T45: 257739.06 | U45: 268739.06 | V45: 279739.06 | W45: 290739.06
C46: =Input!$C$87 -> Software - Acquired | D46: $ | S46: 580855.4525 | T46: 606855.4525 | U46: 712855.4525 | V46: 712855.4525 | W46: 712855.4525
C47: =Input!$C$88 -> Tools and Work Equipment | D47: $ | S47: 761545.99 | T47: 777545.99 | U47: 846545.99 | V47: 862545.99 | W47: 879545.99
C48: =Input!$C$89 -> Communications Equipment - Hardware | D48: $ | S48: 231088.7775 | T48: 231088.7775 | U48: 231088.7775 | V48: 231088.7775 | W48: 231088.7775
C49: =Input!$C$90 -> Vehicles - Transportation Equipment (ENGLP) | D49: $ | S49: 215040.6 | T49: 262040.6 | U49: 310040.6 | V49: 359040.6 | W49: 409040.6
C50: =Input!$C$91 -> Vehicle - Heavy Work Equipment | D50: $ | S50: 0 | T50: 0 | U50: 85000 | V50: 85000 | W50: 85000
C51: =Input!$C$92 -> Meters - Residential | D51: $ | S51: 1798371.01 | T51: 1172782.4 | U51: 1300856.9 | V51: 1431831.2 | W51: 1565222
C52: =Input!$C$93 -> Meters - Commercial | D52: $ | S52: 1321632.93 | T52: 1207028.02 | U52: 1385953.52 | V52: 1568979.22 | W52: 1755588.42
C53: =Input!$C$94 -> Meter - IGPC New | D53: $ | S53: 14139.4 | T53: 14139.4 | U53: 14139.4 | V53: 14139.4 | W53: 14139.4
C54: =Input!$C$95 -> Regulators - New | D54: $ | S54: 71000 | T54: 144000 | U54: 218000 | V54: 294000 | W54: 371000
C55: =Input!$C$96 -> Measuring and Regulating Equipment | D55: $ | S55: 2026624.39 | T55: 2101624.39 | U55: 2177624.39 | V55: 2255624.39 | W55: 2334624.39
C56: =Input!$C$97 -> Mains - Plastic (Distribution Plant) | D56: $ | S56: 13125196.8 | T56: 13699196.8 | U56: 14288196.8 | V56: 14888196.8 | W56: 15500196.8
C57: =Input!$C$98 -> Mains - Metallic (Distribution Plant) | D57: $ | S57: 33014.16 | T57: 33014.16 | U57: 33014.16 | V57: 33014.16 | W57: 33014.16
C58: =Input!$C$99 -> Mains - Metallic (IGPC) | D58: $ | S58: 7128086.29 | T58: =S142+T30 -> 7128086.29 | U58: =T142+U30 -> 7128086.29 | V58: =U142+V30 -> 7128086.29 | W58: =V142+W30 -> 7128086.29
C59: =Input!$C$100 -> Services - Plastic | D59: $ | S59: 4132018.69 | T59: 4304018.69 | U59: 4461018.69 | V59: 4622018.69 | W59: 4785018.69
C60: =Input!$C$101 -> Franchises & Consents - Legacy | D60: $ | S60: 373537.76 | T60: 373537.76 | U60: 373537.76 | V60: 373537.76 | W60: 373537.76
C61: =Input!$C$102 -> Franchises & Consents | D61: $ | S61: 394324.7 | T61: 394324.7 | U61: 394324.7 | V61: 394324.7 | W61: 394324.7
C62: =Input!$C$103 -> Vehicles - Legacy New | D62: $ | S62: 314336.02 | T62: 314336.02 | U62: 314336.02 | V62: 314336.02 | W62: 314336.02
C63: =Input!$C$104 -> New Asset Group 22 | D63: $ | S63: 0 | T63: 0 | U63: 0 | V63: 0 | W63: 0
C64: =Input!$C$105 -> New Asset Group 23 | D64: $ | S64: 0 | T64: 0 | U64: 0 | V64: 0 | W64: 0
C65: =Input!$C$106 -> New Asset Group 24 | D65: $ | S65: 0 | T65: 0 | U65: 0 | V65: 0 | W65: 0
C66: =Input!$C$107 -> New Asset Group 25 | D66: $ | S66: 0 | T66: 0 | U66: 0 | V66: 0 | W66: 0
C67: Sum | D67: $ | S67: =SUM(S42:S66) -> 33734421.08 | T67: =SUM(T42:T66) -> 34018227.56 | U67: =SUM(U42:U66) -> 35540227.56 | V67: =SUM(V42:V66) -> 36845227.56 | W67: =SUM(W42:W66) -> 38174227.56
C69: Additions
C70: =Input!$C$83 -> Land | D70: $ | S70: =-Input!S502 -> 0 | T70: =-Input!T502 -> 0 | U70: =-Input!U502 -> 0 | V70: =-Input!V502 -> 0 | W70: =-Input!W502 -> 0
C71: =Input!$C$84 -> Structures & Improvements - General Plant | D71: $ | S71: =-Input!S503 -> 31000 | T71: =-Input!T503 -> 0 | U71: =-Input!U503 -> 0 | V71: =-Input!V503 -> 0 | W71: =-Input!W503 -> 0
C72: =Input!$C$85 -> Furnishing / Office Equipment | D72: $ | S72: =-Input!S504 -> 0 | T72: =-Input!T504 -> 0 | U72: =-Input!U504 -> 0 | V72: =-Input!V504 -> 0 | W72: =-Input!W504 -> 0
C73: =Input!$C$86 -> Computer Equipment | D73: $ | S73: =-Input!S505 -> 10000 | T73: =-Input!T505 -> 11000 | U73: =-Input!U505 -> 11000 | V73: =-Input!V505 -> 11000 | W73: =-Input!W505 -> 11000
C74: =Input!$C$87 -> Software - Acquired | D74: $ | S74: =-Input!S506 -> 26000 | T74: =-Input!T506 -> 106000 | U74: =-Input!U506 -> 0 | V74: =-Input!V506 -> 0 | W74: =-Input!W506 -> 0
C75: =Input!$C$88 -> Tools and Work Equipment | D75: $ | S75: =-Input!S507 -> 16000 | T75: =-Input!T507 -> 69000 | U75: =-Input!U507 -> 16000 | V75: =-Input!V507 -> 17000 | W75: =-Input!W507 -> 17000
C76: =Input!$C$89 -> Communications Equipment - Hardware | D76: $ | S76: =-Input!S508 -> 0 | T76: =-Input!T508 -> 0 | U76: =-Input!U508 -> 0 | V76: =-Input!V508 -> 0 | W76: =-Input!W508 -> 0
C77: =Input!$C$90 -> Vehicles - Transportation Equipment (ENGLP) | D77: $ | S77: =-Input!S509 -> 47000 | T77: =-Input!T509 -> 48000 | U77: =-Input!U509 -> 49000 | V77: =-Input!V509 -> 50000 | W77: =-Input!W509 -> 51000
C78: =Input!$C$91 -> Vehicle - Heavy Work Equipment | D78: $ | S78: =-Input!S510 -> 0 | T78: =-Input!T510 -> 85000 | U78: =-Input!U510 -> 0 | V78: =-Input!V510 -> 0 | W78: =-Input!W510 -> 0
C79: =Input!$C$92 -> Meters - Residential | D79: $ | S79: =-Input!S511 -> 125658 | T79: =-Input!T511 -> 128074.5 | U79: =-Input!U511 -> 130974.3 | V79: =-Input!V511 -> 133390.8 | W79: =-Input!W511 -> 136290.6
C80: =Input!$C$93 -> Meters - Commercial | D80: $ | S80: =-Input!S512 -> 262342 | T80: =-Input!T512 -> 178925.5 | U80: =-Input!U512 -> 183025.7 | V80: =-Input!V512 -> 186609.2 | W80: =-Input!W512 -> 190709.4
C81: =Input!$C$94 -> Meter - IGPC New | D81: $ | S81: =-Input!S513 -> 0 | T81: =-Input!T513 -> 0 | U81: =-Input!U513 -> 0 | V81: =-Input!V513 -> 0 | W81: =-Input!W513 -> 0
C82: =Input!$C$95 -> Regulators - New | D82: $ | S82: =-Input!S514 -> 73000 | T82: =-Input!T514 -> 74000 | U82: =-Input!U514 -> 76000 | V82: =-Input!V514 -> 77000 | W82: =-Input!W514 -> 79000
C83: =Input!$C$96 -> Measuring and Regulating Equipment | D83: $ | S83: =-Input!S515 -> 75000 | T83: =-Input!T515 -> 76000 | U83: =-Input!U515 -> 78000 | V83: =-Input!V515 -> 79000 | W83: =-Input!W515 -> 81000
C84: =Input!$C$97 -> Mains - Plastic (Distribution Plant) | D84: $ | S84: =-Input!S516 -> 574000 | T84: =-Input!T516 -> 589000 | U84: =-Input!U516 -> 600000 | V84: =-Input!V516 -> 612000 | W84: =-Input!W516 -> 624000
C85: =Input!$C$98 -> Mains - Metallic (Distribution Plant) | D85: $ | S85: =-Input!S517 -> 0 | T85: =-Input!T517 -> 0 | U85: =-Input!U517 -> 0 | V85: =-Input!V517 -> 0 | W85: =-Input!W517 -> 0
C86: =Input!$C$99 -> Mains - Metallic (IGPC) | D86: $ | S86: =-Input!S518 -> 0 | T86: =-Input!T518 -> 0 | U86: =-Input!U518 -> 0 | V86: =-Input!V518 -> 0 | W86: =-Input!W518 -> 0
C87: =Input!$C$100 -> Services - Plastic | D87: $ | S87: =-Input!S519 -> 172000 | T87: =-Input!T519 -> 157000 | U87: =-Input!U519 -> 161000 | V87: =-Input!V519 -> 163000 | W87: =-Input!W519 -> 167000
C88: =Input!$C$101 -> Franchises & Consents - Legacy | D88: $ | S88: =-Input!S520 -> 0 | T88: =-Input!T520 -> 0 | U88: =-Input!U520 -> 0 | V88: =-Input!V520 -> 0 | W88: =-Input!W520 -> 0
C89: =Input!$C$102 -> Franchises & Consents | D89: $ | S89: =-Input!S521 -> 0 | T89: =-Input!T521 -> 0 | U89: =-Input!U521 -> 0 | V89: =-Input!V521 -> 0 | W89: =-Input!W521 -> 0
C90: =Input!$C$103 -> Vehicles - Legacy New | D90: $ | S90: =-Input!S522 -> 0 | T90: =-Input!T522 -> 0 | U90: =-Input!U522 -> 0 | V90: =-Input!V522 -> 0 | W90: =-Input!W522 -> 0
C91: =Input!$C$104 -> New Asset Group 22 | D91: $ | S91: =-Input!S523 -> 0 | T91: =-Input!T523 -> 0 | U91: =-Input!U523 -> 0 | V91: =-Input!V523 -> 0 | W91: =-Input!W523 -> 0
C92: =Input!$C$105 -> New Asset Group 23 | D92: $ | S92: =-Input!S524 -> 0 | T92: =-Input!T524 -> 0 | U92: =-Input!U524 -> 0 | V92: =-Input!V524 -> 0 | W92: =-Input!W524 -> 0
C93: =Input!$C$106 -> New Asset Group 24 | D93: $ | S93: =-Input!S525 -> 0 | T93: =-Input!T525 -> 0 | U93: =-Input!U525 -> 0 | V93: =-Input!V525 -> 0 | W93: =-Input!W525 -> 0
C94: =Input!$C$107 -> New Asset Group 25 | D94: $ | S94: =-Input!S526 -> 0 | T94: =-Input!T526 -> 0 | U94: =-Input!U526 -> 0 | V94: =-Input!V526 -> 0 | W94: =-Input!W526 -> 0
C95: Sum | D95: $ | S95: =SUM(S70:S94) -> 1412000 | T95: =SUM(T70:T94) -> 1522000 | U95: =SUM(U70:U94) -> 1305000 | V95: =SUM(V70:V94) -> 1329000 | W95: =SUM(W70:W94) -> 1357000
C97: Disposal
C98: =Input!$C$83 -> Land | D98: $ | S98: 0 | T98: 0 | U98: 0 | V98: 0 | W98: 0
C99: =Input!$C$84 -> Structures & Improvements - General Plant | D99: $ | S99: 0 | T99: 0 | U99: 0 | V99: 0 | W99: 0
C100: =Input!$C$85 -> Furnishing / Office Equipment | D100: $ | S100: 0 | T100: 0 | U100: 0 | V100: 0 | W100: 0
C101: =Input!$C$86 -> Computer Equipment | D101: $ | S101: 0 | T101: 0 | U101: 0 | V101: 0 | W101: 0
C102: =Input!$C$87 -> Software - Acquired | D102: $ | S102: 0 | T102: 0 | U102: 0 | V102: 0 | W102: 0
C103: =Input!$C$88 -> Tools and Work Equipment | D103: $ | S103: 0 | T103: 0 | U103: 0 | V103: 0 | W103: 0
C104: =Input!$C$89 -> Communications Equipment - Hardware | D104: $ | S104: 0 | T104: 0 | U104: 0 | V104: 0 | W104: 0
C105: =Input!$C$90 -> Vehicles - Transportation Equipment (ENGLP) | D105: $ | S105: 0 | T105: 0 | U105: 0 | V105: 0 | W105: 0
C106: =Input!$C$91 -> Vehicle - Heavy Work Equipment | D106: $ | S106: 0 | T106: 0 | U106: 0 | V106: 0 | W106: 0
C107: =Input!$C$92 -> Meters - Residential | D107: $ | S107: -751246.61 | T107: 0 | U107: 0 | V107: 0 | W107: 0
C108: =Input!$C$93 -> Meters - Commercial | D108: $ | S108: -376946.91 | T108: 0 | U108: 0 | V108: 0 | W108: 0
C109: =Input!$C$94 -> Meter - IGPC New | D109: $ | S109: 0 | T109: 0 | U109: 0 | V109: 0 | W109: 0
C110: =Input!$C$95 -> Regulators - New | D110: $ | S110: 0 | T110: 0 | U110: 0 | V110: 0 | W110: 0
C111: =Input!$C$96 -> Measuring and Regulating Equipment | D111: $ | S111: 0 | T111: 0 | U111: 0 | V111: 0 | W111: 0
C112: =Input!$C$97 -> Mains - Plastic (Distribution Plant) | D112: $ | S112: 0 | T112: 0 | U112: 0 | V112: 0 | W112: 0
C113: =Input!$C$98 -> Mains - Metallic (Distribution Plant) | D113: $ | S113: 0 | T113: 0 | U113: 0 | V113: 0 | W113: 0
C114: =Input!$C$99 -> Mains - Metallic (IGPC) | D114: $ | S114: 0 | T114: 0 | U114: 0 | V114: 0 | W114: 0
C115: =Input!$C$100 -> Services - Plastic | D115: $ | S115: 0 | T115: 0 | U115: 0 | V115: 0 | W115: 0
C116: =Input!$C$101 -> Franchises & Consents - Legacy | D116: $ | S116: 0 | T116: 0 | U116: 0 | V116: 0 | W116: 0
C117: =Input!$C$102 -> Franchises & Consents | D117: $ | S117: 0 | T117: 0 | U117: 0 | V117: 0 | W117: 0
C118: =Input!$C$103 -> Vehicles - Legacy New | D118: $ | S118: 0 | T118: 0 | U118: 0 | V118: 0 | W118: 0
C119: =Input!$C$104 -> New Asset Group 22 | D119: $ | S119: 0 | T119: 0 | U119: 0 | V119: 0 | W119: 0
C120: =Input!$C$105 -> New Asset Group 23 | D120: $ | S120: 0 | T120: 0 | U120: 0 | V120: 0 | W120: 0
C121: =Input!$C$106 -> New Asset Group 24 | D121: $ | S121: 0 | T121: 0 | U121: 0 | V121: 0 | W121: 0
C122: =Input!$C$107 -> New Asset Group 25 | D122: $ | S122: 0 | T122: 0 | U122: 0 | V122: 0 | W122: 0
C123: Sum | D123: $ | S123: =SUM(S98:S122) -> -1128193.52 | T123: =SUM(T98:T122) -> 0 | U123: =SUM(U98:U122) -> 0 | V123: =SUM(V98:V122) -> 0 | W123: =SUM(W98:W122) -> 0
C125: Closing Gross PP&E
C126: =Input!$C$83 -> Land | D126: $ | S126: =S42+S70+S98 -> 122700.43 | T126: 122700.43 | U126: 122700.43 | V126: 122700.43 | W126: 122700.43
C127: =Input!$C$84 -> Structures & Improvements - General Plant | D127: $ | S127: 761632.78 | T127: 761632.78 | U127: 761632.78 | V127: 761632.78 | W127: 761632.78
C128: =Input!$C$85 -> Furnishing / Office Equipment | D128: $ | S128: 112535.84 | T128: 112535.84 | U128: 112535.84 | V128: 112535.84 | W128: 112535.84
C129: =Input!$C$86 -> Computer Equipment | D129: $ | S129: 257739.06 | T129: 268739.06 | U129: 279739.06 | V129: 290739.06 | W129: 301739.06
C130: =Input!$C$87 -> Software - Acquired | D130: $ | S130: 606855.4525 | T130: 712855.4525 | U130: 712855.4525 | V130: 712855.4525 | W130: 712855.4525
C131: =Input!$C$88 -> Tools and Work Equipment | D131: $ | S131: 777545.99 | T131: 846545.99 | U131: 862545.99 | V131: 879545.99 | W131: 896545.99
C132: =Input!$C$89 -> Communications Equipment - Hardware | D132: $ | S132: 231088.7775 | T132: 231088.7775 | U132: 231088.7775 | V132: 231088.7775 | W132: 231088.7775
C133: =Input!$C$90 -> Vehicles - Transportation Equipment (ENGLP) | D133: $ | S133: 262040.6 | T133: 310040.6 | U133: 359040.6 | V133: 409040.6 | W133: 460040.6
C134: =Input!$C$91 -> Vehicle - Heavy Work Equipment | D134: $ | S134: 0 | T134: 85000 | U134: 85000 | V134: 85000 | W134: 85000
C135: =Input!$C$92 -> Meters - Residential | D135: $ | S135: 1172782.4 | T135: 1300856.9 | U135: 1431831.2 | V135: 1565222 | W135: 1701512.6
C136: =Input!$C$93 -> Meters - Commercial | D136: $ | S136: 1207028.02 | T136: 1385953.52 | U136: 1568979.22 | V136: 1755588.42 | W136: 1946297.82
C137: =Input!$C$94 -> Meter - IGPC New | D137: $ | S137: 14139.4 | T137: 14139.4 | U137: 14139.4 | V137: 14139.4 | W137: 14139.4
C138: =Input!$C$95 -> Regulators - New | D138: $ | S138: 144000 | T138: 218000 | U138: 294000 | V138: 371000 | W138: 450000
C139: =Input!$C$96 -> Measuring and Regulating Equipment | D139: $ | S139: 2101624.39 | T139: 2177624.39 | U139: 2255624.39 | V139: 2334624.39 | W139: 2415624.39
C140: =Input!$C$97 -> Mains - Plastic (Distribution Plant) | D140: $ | S140: 13699196.8 | T140: 14288196.8 | U140: 14888196.8 | V140: 15500196.8 | W140: 16124196.8
C141: =Input!$C$98 -> Mains - Metallic (Distribution Plant) | D141: $ | S141: 33014.16 | T141: 33014.16 | U141: 33014.16 | V141: 33014.16 | W141: 33014.16
C142: =Input!$C$99 -> Mains - Metallic (IGPC) | D142: $ | S142: 7128086.29 | T142: 7128086.29 | U142: 7128086.29 | V142: 7128086.29 | W142: 7128086.29
C143: =Input!$C$100 -> Services - Plastic | D143: $ | S143: 4304018.69 | T143: 4461018.69 | U143: 4622018.69 | V143: 4785018.69 | W143: 4952018.69
C144: =Input!$C$101 -> Franchises & Consents - Legacy | D144: $ | S144: 373537.76 | T144: 373537.76 | U144: 373537.76 | V144: 373537.76 | W144: 373537.76
C145: =Input!$C$102 -> Franchises & Consents | D145: $ | S145: 394324.7 | T145: 394324.7 | U145: 394324.7 | V145: 394324.7 | W145: 394324.7
C146: =Input!$C$103 -> Vehicles - Legacy New | D146: $ | S146: 314336.02 | T146: 314336.02 | U146: 314336.02 | V146: 314336.02 | W146: 314336.02
C147: =Input!$C$104 -> New Asset Group 22 | D147: $ | S147: 0 | T147: 0 | U147: 0 | V147: 0 | W147: 0
C148: =Input!$C$105 -> New Asset Group 23 | D148: $ | S148: 0 | T148: 0 | U148: 0 | V148: 0 | W148: 0
C149: =Input!$C$106 -> New Asset Group 24 | D149: $ | S149: 0 | T149: 0 | U149: 0 | V149: 0 | W149: 0
C150: =Input!$C$107 -> New Asset Group 25 | D150: $ | S150: 0 | T150: 0 | U150: 0 | V150: 0 | W150: 0
C151: Sum | D151: $ | S151: =SUM(S126:S150) -> 34018227.56 | T151: =SUM(T126:T150) -> 35540227.56 | U151: =SUM(U126:U150) -> 36845227.56 | V151: =SUM(V126:V150) -> 38174227.56 | W151: =SUM(W126:W150) -> 39531227.56
C153: Accumulated Depreciation
C155: Transfers from Old to New Asset Groups
C156: =Input!$C$83 -> Land | D156: $ | S156: =SUMIF(Input!$E$139:$E$168,$C156,Input!$H$139:$H$168) -> 0
C157: =Input!$C$84 -> Structures & Improvements - General Plant | D157: $ | S157: =SUMIF(Input!$E$139:$E$168,$C157,Input!$H$139:$H$168) -> -294516.6181
C158: =Input!$C$85 -> Furnishing / Office Equipment | D158: $ | S158: =SUMIF(Input!$E$139:$E$168,$C158,Input!$H$139:$H$168) -> -107176.678
C159: =Input!$C$86 -> Computer Equipment | D159: $ | S159: =SUMIF(Input!$E$139:$E$168,$C159,Input!$H$139:$H$168) -> -145698.6262
C160: =Input!$C$87 -> Software - Acquired | D160: $ | S160: =SUMIF(Input!$E$139:$E$168,$C160,Input!$H$139:$H$168) -> -208850.5188
C161: =Input!$C$88 -> Tools and Work Equipment | D161: $ | S161: =SUMIF(Input!$E$139:$E$168,$C161,Input!$H$139:$H$168) -> -564461.9193
C162: =Input!$C$89 -> Communications Equipment - Hardware | D162: $ | S162: =SUMIF(Input!$E$139:$E$168,$C162,Input!$H$139:$H$168) -> -184513.4917
C163: =Input!$C$90 -> Vehicles - Transportation Equipment (ENGLP) | D163: $ | S163: =SUMIF(Input!$E$139:$E$168,$C163,Input!$H$139:$H$168) -> -35617.1094
C164: =Input!$C$91 -> Vehicle - Heavy Work Equipment | D164: $ | S164: =SUMIF(Input!$E$139:$E$168,$C164,Input!$H$139:$H$168) -> 0
C165: =Input!$C$92 -> Meters - Residential | D165: $ | S165: =SUMIF(Input!$E$139:$E$168,$C165,Input!$H$139:$H$168) -> -756871.1929
C166: =Input!$C$93 -> Meters - Commercial | D166: $ | S166: =SUMIF(Input!$E$139:$E$168,$C166,Input!$H$139:$H$168) -> -752235.8866
C167: =Input!$C$94 -> Meter - IGPC New | D167: $ | S167: =SUMIF(Input!$E$139:$E$168,$C167,Input!$H$139:$H$168) -> -6020.401916
C168: =Input!$C$95 -> Regulators - New | D168: $ | S168: =SUMIF(Input!$E$139:$E$168,$C168,Input!$H$139:$H$168) -> -1302.752294
C169: =Input!$C$96 -> Measuring and Regulating Equipment | D169: $ | S169: =SUMIF(Input!$E$139:$E$168,$C169,Input!$H$139:$H$168) -> -1279851.652
C170: =Input!$C$97 -> Mains - Plastic (Distribution Plant) | D170: $ | S170: =SUMIF(Input!$E$139:$E$168,$C170,Input!$H$139:$H$168) -> -5912724.274
C171: =Input!$C$98 -> Mains - Metallic (Distribution Plant) | D171: $ | S171: =SUMIF(Input!$E$139:$E$168,$C171,Input!$H$139:$H$168) -> -33014.16
C172: =Input!$C$99 -> Mains - Metallic (IGPC) | D172: $ | S172: =SUMIF(Input!$E$139:$E$168,$C172,Input!$H$139:$H$168) -> -2884022.111
C173: =Input!$C$100 -> Services - Plastic | D173: $ | S173: =SUMIF(Input!$E$139:$E$168,$C173,Input!$H$139:$H$168) -> -2867263.061
C174: =Input!$C$101 -> Franchises & Consents - Legacy | D174: $ | S174: =SUMIF(Input!$E$139:$E$168,$C174,Input!$H$139:$H$168) -> -226082.467
C175: =Input!$C$102 -> Franchises & Consents | D175: $ | S175: =SUMIF(Input!$E$139:$E$168,$C175,Input!$H$139:$H$168) -> -155044.7162
C176: =Input!$C$103 -> Vehicles - Legacy New | D176: $ | S176: =SUMIF(Input!$E$139:$E$168,$C176,Input!$H$139:$H$168) -> -289930.2507
C177: =Input!$C$104 -> New Asset Group 22 | D177: $ | S177: =SUMIF(Input!$E$139:$E$168,$C177,Input!$H$139:$H$168) -> 0
C178: =Input!$C$105 -> New Asset Group 23 | D178: $ | S178: =SUMIF(Input!$E$139:$E$168,$C178,Input!$H$139:$H$168) -> 0
C179: =Input!$C$106 -> New Asset Group 24 | D179: $ | S179: =SUMIF(Input!$E$139:$E$168,$C179,Input!$H$139:$H$168) -> 0
C180: =Input!$C$107 -> New Asset Group 25 | D180: $ | S180: =SUMIF(Input!$E$139:$E$168,$C180,Input!$H$139:$H$168) -> 0
C181: Sum | D181: $ | S181: =SUM(S156:S180) -> -16705197.89
C183: Opening Accumulated Depreciation
C184: =Input!$C$83 -> Land | D184: $ | S184: =R268+S156 -> 0 | T184: =S268+T156 -> 0 | U184: 0 | V184: 0 | W184: 0
C185: =Input!$C$84 -> Structures & Improvements - General Plant | D185: $ | S185: =R269+S157 -> -294516.6181 | T185: -308843.2844 | U185: -323467.5697 | V185: -338091.8551 | W185: -352716.1404
C186: =Input!$C$85 -> Furnishing / Office Equipment | D186: $ | S186: -107176.678 | T186: -112535.84 | U186: -112535.84 | V186: -112535.84 | W186: -112535.84
C187: =Input!$C$86 -> Computer Equipment | D187: $ | S187: -145698.6262 | T187: -208883.3912 | U187: -259114.06 | V187: -270114.06 | W187: -281114.06
C188: =Input!$C$87 -> Software - Acquired | D188: $ | S188: -208850.5188 | T188: -268236.0641 | U188: -334221.6093 | V188: -405507.1546 | W188: -476792.6998
C189: =Input!$C$88 -> Tools and Work Equipment | D189: $ | S189: -564461.9193 | T189: -615764.9853 | U189: -669901.3846 | V189: -726871.1173 | W189: -784940.8499
C190: =Input!$C$89 -> Communications Equipment - Hardware | D190: $ | S190: -184513.4917 | T190: -199919.4102 | U190: -215325.3287 | V190: -230731.2472 | W190: -231088.7775
C191: =Input!$C$90 -> Vehicles - Transportation Equipment (ENGLP) | D191: $ | S191: -35617.1094 | T191: -75214.849 | U191: -122697.5886 | V191: -178231.3282 | W191: -241982.0678
C192: =Input!$C$91 -> Vehicle - Heavy Work Equipment | D192: $ | S192: 0 | T192: 0 | U192: -2941.176471 | V192: -8823.529412 | W192: -14705.88235
C193: =Input!$C$92 -> Meters - Residential | D193: $ | S193: -756871.1929 | T193: -316643.4634 | U193: -440325.4284 | V193: -576959.8334 | W193: -726812.4934
C194: =Input!$C$93 -> Meters - Commercial | D194: $ | S194: -752235.8866 | T194: -438505.5004 | U194: -503330.0389 | V194: -577203.3574 | W194: -660317.5484
C195: =Input!$C$94 -> Meter - IGPC New | D195: $ | S195: -6020.401916 | T195: -8376.968583 | U195: -10733.53525 | V195: -13090.10192 | W195: -14139.4
C196: =Input!$C$95 -> Regulators - New | D196: $ | S196: -1302.752294 | T196: -6677.752294 | U196: -15727.75229 | V196: -28527.75229 | W196: -45152.75229
C197: =Input!$C$96 -> Measuring and Regulating Equipment | D197: $ | S197: -1279851.652 | T197: -1355405.253 | U197: -1433722.398 | V197: -1514857.99 | W197: -1598866.936
C198: =Input!$C$97 -> Mains - Plastic (Distribution Plant) | D198: $ | S198: -5912724.274 | T198: -6222546.33 | U198: -6545801.049 | V198: -6882788.732 | W198: -7233775.029
C199: =Input!$C$98 -> Mains - Metallic (Distribution Plant) | D199: $ | S199: -33014.16 | T199: -33014.16 | U199: -33014.16 | V199: -33014.16 | W199: -33014.16
C200: =Input!$C$99 -> Mains - Metallic (IGPC) | D200: $ | S200: -2884022.111 | T200: =S284+T172 -> -3025144.389 | U200: =T284+U172 -> -3166266.668 | V200: =U284+V172 -> -3307388.946 | W200: =V284+W172 -> -3448511.225
C201: =Input!$C$100 -> Services - Plastic | D201: $ | S201: -2867263.061 | T201: -2973137.024 | U201: -3083140.003 | V201: -3197133.946 | W201: -3315194.154
C202: =Input!$C$101 -> Franchises & Consents - Legacy | D202: $ | S202: -226082.467 | T202: -244012.2795 | U202: -261942.092 | V202: -279871.9045 | W202: -297801.717
C203: =Input!$C$102 -> Franchises & Consents | D203: $ | S203: -155044.7162 | T203: -174760.9512 | U203: -194477.1862 | V203: -214193.4212 | W203: -233909.6562
C204: =Input!$C$103 -> Vehicles - Legacy New | D204: $ | S204: -289930.2507 | T204: -303676.3156 | U204: -303676.3156 | V204: -303676.3156 | W204: -303676.3156
C205: =Input!$C$104 -> New Asset Group 22 | D205: $ | S205: 0 | T205: 0 | U205: 0 | V205: 0 | W205: 0
C206: =Input!$C$105 -> New Asset Group 23 | D206: $ | S206: 0 | T206: 0 | U206: 0 | V206: 0 | W206: 0
C207: =Input!$C$106 -> New Asset Group 24 | D207: $ | S207: 0 | T207: 0 | U207: 0 | V207: 0 | W207: 0
C208: =Input!$C$107 -> New Asset Group 25 | D208: $ | S208: 0 | T208: 0 | U208: 0 | V208: 0 | W208: 0
C209: Sum | D209: $ | S209: =SUM(S184:S208) -> -16705197.89 | T209: =SUM(T184:T208) -> -16891298.21 | U209: =SUM(U184:U208) -> -18032361.18 | V209: =SUM(V184:V208) -> -19199612.59 | W209: =SUM(W184:W208) -> -20407047.71
C211: Depreciation | E211: Depreciation Rate | F211: Depreciation Method
C212: =Input!$C$83 -> Land | D212: $ | E212: =Input!E83 -> 0 | F212: =Input!F83 -> Straightline | S212: =($F212="Straightline")*(-MIN($E212*S42,S42+S184+S98)-(S70*half)*$E212-(S98*half)*$E212)+($F212="Declining Balance")*-$E212*(S42+S98+S184+S240+half*(S70+S98+S240)) -> 0 | T212: 0 | U212: 0 | V212: 0 | W212: 0
C213: =Input!$C$84 -> Structures & Improvements - General Plant | D213: $ | E213: =Input!E84 -> 0.01920122888 | F213: =Input!F84 -> Straightline | S213: -14326.66628 | T213: -14624.28533 | U213: -14624.28533 | V213: -14624.28533 | W213: -14624.28533
C214: =Input!$C$85 -> Furnishing / Office Equipment | D214: $ | E214: =Input!E85 -> 0.06666666667 | F214: =Input!F85 -> Straightline | S214: -5359.162 | T214: 0 | U214: 0 | V214: 0 | W214: 0
... 2335 more rows

Sheet 3-IGPC-06
A2: Schedule 2
A3: Functionalization of O&M
A4: ($ thousands)
C5: A | D5: B | E5: C | F5: D | G5: E | H5: F | I5: G | J5: H | K5: I | L5: J | M5: K | N5: L | O5: M | P5: N | Q5: O
B6: Cost | C6: Total | D6: Gas Supply | E6: Transportation Load Bal/ Storage | F6: Distribution Measurement | G6: Distribution - Mains | H6: Customer - Services | I6: Customer - Meters | J6: Billing & Accounting | K6: Promotion | L6: Bad Debt & Collection | M6: A&G | N6: LEAP Funding | O6: Direct Assignment to IGPC | P6: Other Revenue | Q6: Functionalization Factor
A7: 1 | B7: Insurance | C7: 86211.09 | D7: 0 | E7: 0 | F7: 13.37992715 | G7: 347.7187949 | H7: 308.7137448 | I7: 120.4193443 | J7: 41.41823515 | K7: 162.291598 | L7: 0 | M7: 85217.14836 | N7: 0 | O7: 0 | P7: 0 | Q7: Insurance
A9: Schedule 11
A10: Classification of Cost of Service
A11: ($ thousands)
C12: A | D12: B | E12: C | F12: D | G12: E | H12: F | I12: G | J12: H | K12: I | L12: J | M12: K | N12: L | O12: M | P12: N | Q12: O
B13: Function | C13: Total | D13: Enbridge Demand | E13: Enbridge Commodity | F13: Delivery Commodity | G13: Delivery Demand | H13: Weighted Customer Services | I13: Weighted Customer Meters | J13: Weighted Customer Billing | K13: Unweighted Customer | L13: Bad Debt & Collection | M13: LEAP Funding | N13: Classification 11 | O13: Direct Assignment to IGPC | P13: 0 | Q13: Classification Factor
A14: 1 | B14: Gas Supply | C14: 0 | D14: =INDEX(Input!J$846:J$875,MATCH($Q14,Input!$C$846:$C$875,0),1)*$C14 -> 0 | E14: =INDEX(Input!K$846:K$875,MATCH($Q14,Input!$C$846:$C$875,0),1)*$C14 -> 0 | F14: =INDEX(Input!L$846:L$875,MATCH($Q14,Input!$C$846:$C$875,0),1)*$C14 -> 0 | G14: =INDEX(Input!M$846:M$875,MATCH($Q14,Input!$C$846:$C$875,0),1)*$C14 -> 0 | H14: =INDEX(Input!N$846:N$875,MATCH($Q14,Input!$C$846:$C$875,0),1)*$C14 -> 0 | I14: =INDEX(Input!O$846:O$875,MATCH($Q14,Input!$C$846:$C$875,0),1)*$C14 -> 0 | J14: =INDEX(Input!P$846:P$875,MATCH($Q14,Input!$C$846:$C$875,0),1)*$C14 -> 0 | K14: =INDEX(Input!Q$846:Q$875,MATCH($Q14,Input!$C$846:$C$875,0),1)*$C14 -> 0 | L14: =INDEX(Input!R$846:R$875,MATCH($Q14,Input!$C$846:$C$875,0),1)*$C14 -> 0 | M14: =INDEX(Input!S$846:S$875,MATCH($Q14,Input!$C$846:$C$875,0),1)*$C14 -> 0 | N14: =INDEX(Input!T$846:T$875,MATCH($Q14,Input!$C$846:$C$875,0),1)*$C14 -> 0 | O14: =INDEX(Input!U$846:U$875,MATCH($Q14,Input!$C$846:$C$875,0),1)*$C14 -> 0 | P14: =INDEX(Input!V$846:V$875,MATCH($Q14,Input!$C$846:$C$875,0),1)*$C14 -> 0 | Q14: Gas Supply
A15: 2 | B15: Transportation Load Bal/ Storage | C15: 0 | D15: =INDEX(Input!J$846:J$875,MATCH($Q15,Input!$C$846:$C$875,0),1)*$C15 -> 0 | E15: =INDEX(Input!K$846:K$875,MATCH($Q15,Input!$C$846:$C$875,0),1)*$C15 -> 0 | F15: =INDEX(Input!L$846:L$875,MATCH($Q15,Input!$C$846:$C$875,0),1)*$C15 -> 0 | G15: =INDEX(Input!M$846:M$875,MATCH($Q15,Input!$C$846:$C$875,0),1)*$C15 -> 0 | H15: =INDEX(Input!N$846:N$875,MATCH($Q15,Input!$C$846:$C$875,0),1)*$C15 -> 0 | I15: =INDEX(Input!O$846:O$875,MATCH($Q15,Input!$C$846:$C$875,0),1)*$C15 -> 0 | J15: =INDEX(Input!P$846:P$875,MATCH($Q15,Input!$C$846:$C$875,0),1)*$C15 -> 0 | K15: =INDEX(Input!Q$846:Q$875,MATCH($Q15,Input!$C$846:$C$875,0),1)*$C15 -> 0 | L15: =INDEX(Input!R$846:R$875,MATCH($Q15,Input!$C$846:$C$875,0),1)*$C15 -> 0 | M15: =INDEX(Input!S$846:S$875,MATCH($Q15,Input!$C$846:$C$875,0),1)*$C15 -> 0 | N15: =INDEX(Input!T$846:T$875,MATCH($Q15,Input!$C$846:$C$875,0),1)*$C15 -> 0 | O15: =INDEX(Input!U$846:U$875,MATCH($Q15,Input!$C$846:$C$875,0),1)*$C15 -> 0 | P15: =INDEX(Input!V$846:V$875,MATCH($Q15,Input!$C$846:$C$875,0),1)*$C15 -> 0 | Q15: Enbridge Demand & Commodity (Excluding IGPC)
A16: 3 | B16: Distribution Measurement | C16: 13.37992715 | D16: =INDEX(Input!J$846:J$875,MATCH($Q16,Input!$C$846:$C$875,0),1)*$C16 -> 0 | E16: =INDEX(Input!K$846:K$875,MATCH($Q16,Input!$C$846:$C$875,0),1)*$C16 -> 0 | F16: =INDEX(Input!L$846:L$875,MATCH($Q16,Input!$C$846:$C$875,0),1)*$C16 -> 6.689963574 | G16: =INDEX(Input!M$846:M$875,MATCH($Q16,Input!$C$846:$C$875,0),1)*$C16 -> 6.689963574 | H16: =INDEX(Input!N$846:N$875,MATCH($Q16,Input!$C$846:$C$875,0),1)*$C16 -> 0 | I16: =INDEX(Input!O$846:O$875,MATCH($Q16,Input!$C$846:$C$875,0),1)*$C16 -> 0 | J16: =INDEX(Input!P$846:P$875,MATCH($Q16,Input!$C$846:$C$875,0),1)*$C16 -> 0 | K16: =INDEX(Input!Q$846:Q$875,MATCH($Q16,Input!$C$846:$C$875,0),1)*$C16 -> 0 | L16: =INDEX(Input!R$846:R$875,MATCH($Q16,Input!$C$846:$C$875,0),1)*$C16 -> 0 | M16: =INDEX(Input!S$846:S$875,MATCH($Q16,Input!$C$846:$C$875,0),1)*$C16 -> 0 | N16: =INDEX(Input!T$846:T$875,MATCH($Q16,Input!$C$846:$C$875,0),1)*$C16 -> 0 | O16: =INDEX(Input!U$846:U$875,MATCH($Q16,Input!$C$846:$C$875,0),1)*$C16 -> 0 | P16: =INDEX(Input!V$846:V$875,MATCH($Q16,Input!$C$846:$C$875,0),1)*$C16 -> 0 | Q16: Distribution Measurement
A17: 4 | B17: Distribution - Mains | C17: 347.7187949 | D17: =INDEX(Input!J$846:J$875,MATCH($Q17,Input!$C$846:$C$875,0),1)*$C17 -> 0 | E17: =INDEX(Input!K$846:K$875,MATCH($Q17,Input!$C$846:$C$875,0),1)*$C17 -> 0 | F17: =INDEX(Input!L$846:L$875,MATCH($Q17,Input!$C$846:$C$875,0),1)*$C17 -> 0 | G17: =INDEX(Input!M$846:M$875,MATCH($Q17,Input!$C$846:$C$875,0),1)*$C17 -> 231.3373143 | H17: =INDEX(Input!N$846:N$875,MATCH($Q17,Input!$C$846:$C$875,0),1)*$C17 -> 0 | I17: =INDEX(Input!O$846:O$875,MATCH($Q17,Input!$C$846:$C$875,0),1)*$C17 -> 0 | J17: =INDEX(Input!P$846:P$875,MATCH($Q17,Input!$C$846:$C$875,0),1)*$C17 -> 0 | K17: =INDEX(Input!Q$846:Q$875,MATCH($Q17,Input!$C$846:$C$875,0),1)*$C17 -> 116.3814807 | L17: =INDEX(Input!R$846:R$875,MATCH($Q17,Input!$C$846:$C$875,0),1)*$C17 -> 0 | M17: =INDEX(Input!S$846:S$875,MATCH($Q17,Input!$C$846:$C$875,0),1)*$C17 -> 0 | N17: =INDEX(Input!T$846:T$875,MATCH($Q17,Input!$C$846:$C$875,0),1)*$C17 -> 0 | O17: =INDEX(Input!U$846:U$875,MATCH($Q17,Input!$C$846:$C$875,0),1)*$C17 -> 0 | P17: =INDEX(Input!V$846:V$875,MATCH($Q17,Input!$C$846:$C$875,0),1)*$C17 -> 0 | Q17: Mains
A18: 5 | B18: Customer - Services | C18: 308.7137448 | D18: =INDEX(Input!J$846:J$875,MATCH($Q18,Input!$C$846:$C$875,0),1)*$C18 -> 0 | E18: =INDEX(Input!K$846:K$875,MATCH($Q18,Input!$C$846:$C$875,0),1)*$C18 -> 0 | F18: =INDEX(Input!L$846:L$875,MATCH($Q18,Input!$C$846:$C$875,0),1)*$C18 -> 0 | G18: =INDEX(Input!M$846:M$875,MATCH($Q18,Input!$C$846:$C$875,0),1)*$C18 -> 0 | H18: =INDEX(Input!N$846:N$875,MATCH($Q18,Input!$C$846:$C$875,0),1)*$C18 -> 308.7137448 | I18: =INDEX(Input!O$846:O$875,MATCH($Q18,Input!$C$846:$C$875,0),1)*$C18 -> 0 | J18: =INDEX(Input!P$846:P$875,MATCH($Q18,Input!$C$846:$C$875,0),1)*$C18 -> 0 | K18: =INDEX(Input!Q$846:Q$875,MATCH($Q18,Input!$C$846:$C$875,0),1)*$C18 -> 0 | L18: =INDEX(Input!R$846:R$875,MATCH($Q18,Input!$C$846:$C$875,0),1)*$C18 -> 0 | M18: =INDEX(Input!S$846:S$875,MATCH($Q18,Input!$C$846:$C$875,0),1)*$C18 -> 0 | N18: =INDEX(Input!T$846:T$875,MATCH($Q18,Input!$C$846:$C$875,0),1)*$C18 -> 0 | O18: =INDEX(Input!U$846:U$875,MATCH($Q18,Input!$C$846:$C$875,0),1)*$C18 -> 0 | P18: =INDEX(Input!V$846:V$875,MATCH($Q18,Input!$C$846:$C$875,0),1)*$C18 -> 0 | Q18: Services
A19: 6 | B19: Customer - Meters | C19: 120.4193443 | D19: =INDEX(Input!J$846:J$875,MATCH($Q19,Input!$C$846:$C$875,0),1)*$C19 -> 0 | E19: =INDEX(Input!K$846:K$875,MATCH($Q19,Input!$C$846:$C$875,0),1)*$C19 -> 0 | F19: =INDEX(Input!L$846:L$875,MATCH($Q19,Input!$C$846:$C$875,0),1)*$C19 -> 0 | G19: =INDEX(Input!M$846:M$875,MATCH($Q19,Input!$C$846:$C$875,0),1)*$C19 -> 0 | H19: =INDEX(Input!N$846:N$875,MATCH($Q19,Input!$C$846:$C$875,0),1)*$C19 -> 0 | I19: =INDEX(Input!O$846:O$875,MATCH($Q19,Input!$C$846:$C$875,0),1)*$C19 -> 120.4193443 | J19: =INDEX(Input!P$846:P$875,MATCH($Q19,Input!$C$846:$C$875,0),1)*$C19 -> 0 | K19: =INDEX(Input!Q$846:Q$875,MATCH($Q19,Input!$C$846:$C$875,0),1)*$C19 -> 0 | L19: =INDEX(Input!R$846:R$875,MATCH($Q19,Input!$C$846:$C$875,0),1)*$C19 -> 0 | M19: =INDEX(Input!S$846:S$875,MATCH($Q19,Input!$C$846:$C$875,0),1)*$C19 -> 0 | N19: =INDEX(Input!T$846:T$875,MATCH($Q19,Input!$C$846:$C$875,0),1)*$C19 -> 0 | O19: =INDEX(Input!U$846:U$875,MATCH($Q19,Input!$C$846:$C$875,0),1)*$C19 -> 0 | P19: =INDEX(Input!V$846:V$875,MATCH($Q19,Input!$C$846:$C$875,0),1)*$C19 -> 0 | Q19: Meters
A20: 7 | B20: Billing & Accounting | C20: 41.41823515 | D20: =INDEX(Input!J$846:J$875,MATCH($Q20,Input!$C$846:$C$875,0),1)*$C20 -> 0 | E20: =INDEX(Input!K$846:K$875,MATCH($Q20,Input!$C$846:$C$875,0),1)*$C20 -> 0 | F20: =INDEX(Input!L$846:L$875,MATCH($Q20,Input!$C$846:$C$875,0),1)*$C20 -> 0 | G20: =INDEX(Input!M$846:M$875,MATCH($Q20,Input!$C$846:$C$875,0),1)*$C20 -> 0 | H20: =INDEX(Input!N$846:N$875,MATCH($Q20,Input!$C$846:$C$875,0),1)*$C20 -> 0 | I20: =INDEX(Input!O$846:O$875,MATCH($Q20,Input!$C$846:$C$875,0),1)*$C20 -> 0 | J20: =INDEX(Input!P$846:P$875,MATCH($Q20,Input!$C$846:$C$875,0),1)*$C20 -> 41.41823515 | K20: =INDEX(Input!Q$846:Q$875,MATCH($Q20,Input!$C$846:$C$875,0),1)*$C20 -> 0 | L20: =INDEX(Input!R$846:R$875,MATCH($Q20,Input!$C$846:$C$875,0),1)*$C20 -> 0 | M20: =INDEX(Input!S$846:S$875,MATCH($Q20,Input!$C$846:$C$875,0),1)*$C20 -> 0 | N20: =INDEX(Input!T$846:T$875,MATCH($Q20,Input!$C$846:$C$875,0),1)*$C20 -> 0 | O20: =INDEX(Input!U$846:U$875,MATCH($Q20,Input!$C$846:$C$875,0),1)*$C20 -> 0 | P20: =INDEX(Input!V$846:V$875,MATCH($Q20,Input!$C$846:$C$875,0),1)*$C20 -> 0 | Q20: Billing and Accounting
A21: 8 | B21: Promotion | C21: 162.291598 | D21: =INDEX(Input!J$846:J$875,MATCH($Q21,Input!$C$846:$C$875,0),1)*$C21 -> 0 | E21: =INDEX(Input!K$846:K$875,MATCH($Q21,Input!$C$846:$C$875,0),1)*$C21 -> 0 | F21: =INDEX(Input!L$846:L$875,MATCH($Q21,Input!$C$846:$C$875,0),1)*$C21 -> 0 | G21: =INDEX(Input!M$846:M$875,MATCH($Q21,Input!$C$846:$C$875,0),1)*$C21 -> 0 | H21: =INDEX(Input!N$846:N$875,MATCH($Q21,Input!$C$846:$C$875,0),1)*$C21 -> 0 | I21: =INDEX(Input!O$846:O$875,MATCH($Q21,Input!$C$846:$C$875,0),1)*$C21 -> 0 | J21: =INDEX(Input!P$846:P$875,MATCH($Q21,Input!$C$846:$C$875,0),1)*$C21 -> 0 | K21: =INDEX(Input!Q$846:Q$875,MATCH($Q21,Input!$C$846:$C$875,0),1)*$C21 -> 162.291598 | L21: =INDEX(Input!R$846:R$875,MATCH($Q21,Input!$C$846:$C$875,0),1)*$C21 -> 0 | M21: =INDEX(Input!S$846:S$875,MATCH($Q21,Input!$C$846:$C$875,0),1)*$C21 -> 0 | N21: =INDEX(Input!T$846:T$875,MATCH($Q21,Input!$C$846:$C$875,0),1)*$C21 -> 0 | O21: =INDEX(Input!U$846:U$875,MATCH($Q21,Input!$C$846:$C$875,0),1)*$C21 -> 0 | P21: =INDEX(Input!V$846:V$875,MATCH($Q21,Input!$C$846:$C$875,0),1)*$C21 -> 0 | Q21: Promotion
A22: 9 | B22: Bad Debt & Collection | C22: 0 | D22: =INDEX(Input!J$846:J$875,MATCH($Q22,Input!$C$846:$C$875,0),1)*$C22 -> 0 | E22: =INDEX(Input!K$846:K$875,MATCH($Q22,Input!$C$846:$C$875,0),1)*$C22 -> 0 | F22: =INDEX(Input!L$846:L$875,MATCH($Q22,Input!$C$846:$C$875,0),1)*$C22 -> 0 | G22: =INDEX(Input!M$846:M$875,MATCH($Q22,Input!$C$846:$C$875,0),1)*$C22 -> 0 | H22: =INDEX(Input!N$846:N$875,MATCH($Q22,Input!$C$846:$C$875,0),1)*$C22 -> 0 | I22: =INDEX(Input!O$846:O$875,MATCH($Q22,Input!$C$846:$C$875,0),1)*$C22 -> 0 | J22: =INDEX(Input!P$846:P$875,MATCH($Q22,Input!$C$846:$C$875,0),1)*$C22 -> 0 | K22: =INDEX(Input!Q$846:Q$875,MATCH($Q22,Input!$C$846:$C$875,0),1)*$C22 -> 0 | L22: =INDEX(Input!R$846:R$875,MATCH($Q22,Input!$C$846:$C$875,0),1)*$C22 -> 0 | M22: =INDEX(Input!S$846:S$875,MATCH($Q22,Input!$C$846:$C$875,0),1)*$C22 -> 0 | N22: =INDEX(Input!T$846:T$875,MATCH($Q22,Input!$C$846:$C$875,0),1)*$C22 -> 0 | O22: =INDEX(Input!U$846:U$875,MATCH($Q22,Input!$C$846:$C$875,0),1)*$C22 -> 0 | P22: =INDEX(Input!V$846:V$875,MATCH($Q22,Input!$C$846:$C$875,0),1)*$C22 -> 0 | Q22: Bad Debt
A23: 10 | B23: A&G | C23: 85217.14836 | D23: =Calculation!J$2412*$C23 -> 0 | E23: =Calculation!K$2412*$C23 -> 0 | F23: =Calculation!L$2412*$C23 -> 1685.27349 | G23: =Calculation!M$2412*$C23 -> 18851.28555 | H23: =Calculation!N$2412*$C23 -> 11295.39265 | I23: =Calculation!O$2412*$C23 -> 14799.26963 | J23: =Calculation!P$2412*$C23 -> 12816.0605 | K23: =Calculation!Q$2412*$C23 -> 11426.66569 | L23: =Calculation!R$2412*$C23 -> 1454.729085 | M23: =Calculation!S$2412*$C23 -> 196.7292266 | N23: =Calculation!T$2412*$C23 -> 0 | O23: =Calculation!U$2412*$C23 -> 12691.74254 | P23: =Calculation!V$2412*$C23 -> 0 | Q23: A&G
A24: 11 | B24: LEAP Funding | C24: 0 | D24: =INDEX(Input!J$846:J$875,MATCH($Q24,Input!$C$846:$C$875,0),1)*$C24 -> 0 | E24: =INDEX(Input!K$846:K$875,MATCH($Q24,Input!$C$846:$C$875,0),1)*$C24 -> 0 | F24: =INDEX(Input!L$846:L$875,MATCH($Q24,Input!$C$846:$C$875,0),1)*$C24 -> 0 | G24: =INDEX(Input!M$846:M$875,MATCH($Q24,Input!$C$846:$C$875,0),1)*$C24 -> 0 | H24: =INDEX(Input!N$846:N$875,MATCH($Q24,Input!$C$846:$C$875,0),1)*$C24 -> 0 | I24: =INDEX(Input!O$846:O$875,MATCH($Q24,Input!$C$846:$C$875,0),1)*$C24 -> 0 | J24: =INDEX(Input!P$846:P$875,MATCH($Q24,Input!$C$846:$C$875,0),1)*$C24 -> 0 | K24: =INDEX(Input!Q$846:Q$875,MATCH($Q24,Input!$C$846:$C$875,0),1)*$C24 -> 0 | L24: =INDEX(Input!R$846:R$875,MATCH($Q24,Input!$C$846:$C$875,0),1)*$C24 -> 0 | M24: =INDEX(Input!S$846:S$875,MATCH($Q24,Input!$C$846:$C$875,0),1)*$C24 -> 0 | N24: =INDEX(Input!T$846:T$875,MATCH($Q24,Input!$C$846:$C$875,0),1)*$C24 -> 0 | O24: =INDEX(Input!U$846:U$875,MATCH($Q24,Input!$C$846:$C$875,0),1)*$C24 -> 0 | P24: =INDEX(Input!V$846:V$875,MATCH($Q24,Input!$C$846:$C$875,0),1)*$C24 -> 0 | Q24: LEAP Funding
A25: 12 | B25: Direct Assignment to IGPC | C25: 0 | D25: =INDEX(Input!J$846:J$875,MATCH($Q25,Input!$C$846:$C$875,0),1)*$C25 -> 0 | E25: =INDEX(Input!K$846:K$875,MATCH($Q25,Input!$C$846:$C$875,0),1)*$C25 -> 0 | F25: =INDEX(Input!L$846:L$875,MATCH($Q25,Input!$C$846:$C$875,0),1)*$C25 -> 0 | G25: =INDEX(Input!M$846:M$875,MATCH($Q25,Input!$C$846:$C$875,0),1)*$C25 -> 0 | H25: =INDEX(Input!N$846:N$875,MATCH($Q25,Input!$C$846:$C$875,0),1)*$C25 -> 0 | I25: =INDEX(Input!O$846:O$875,MATCH($Q25,Input!$C$846:$C$875,0),1)*$C25 -> 0 | J25: =INDEX(Input!P$846:P$875,MATCH($Q25,Input!$C$846:$C$875,0),1)*$C25 -> 0 | K25: =INDEX(Input!Q$846:Q$875,MATCH($Q25,Input!$C$846:$C$875,0),1)*$C25 -> 0 | L25: =INDEX(Input!R$846:R$875,MATCH($Q25,Input!$C$846:$C$875,0),1)*$C25 -> 0 | M25: =INDEX(Input!S$846:S$875,MATCH($Q25,Input!$C$846:$C$875,0),1)*$C25 -> 0 | N25: =INDEX(Input!T$846:T$875,MATCH($Q25,Input!$C$846:$C$875,0),1)*$C25 -> 0 | O25: =INDEX(Input!U$846:U$875,MATCH($Q25,Input!$C$846:$C$875,0),1)*$C25 -> 0 | P25: =INDEX(Input!V$846:V$875,MATCH($Q25,Input!$C$846:$C$875,0),1)*$C25 -> 0 | Q25: Direct Assignment to IGPC
A26: 13 | B26: Other Revenue | C26: 0 | D26: =INDEX(Input!J$846:J$875,MATCH($Q26,Input!$C$846:$C$875,0),1)*$C26 -> 0 | E26: =INDEX(Input!K$846:K$875,MATCH($Q26,Input!$C$846:$C$875,0),1)*$C26 -> 0 | F26: =INDEX(Input!L$846:L$875,MATCH($Q26,Input!$C$846:$C$875,0),1)*$C26 -> 0 | G26: =INDEX(Input!M$846:M$875,MATCH($Q26,Input!$C$846:$C$875,0),1)*$C26 -> 0 | H26: =INDEX(Input!N$846:N$875,MATCH($Q26,Input!$C$846:$C$875,0),1)*$C26 -> 0 | I26: =INDEX(Input!O$846:O$875,MATCH($Q26,Input!$C$846:$C$875,0),1)*$C26 -> 0 | J26: =INDEX(Input!P$846:P$875,MATCH($Q26,Input!$C$846:$C$875,0),1)*$C26 -> 0 | K26: =INDEX(Input!Q$846:Q$875,MATCH($Q26,Input!$C$846:$C$875,0),1)*$C26 -> 0 | L26: =INDEX(Input!R$846:R$875,MATCH($Q26,Input!$C$846:$C$875,0),1)*$C26 -> 0 | M26: =INDEX(Input!S$846:S$875,MATCH($Q26,Input!$C$846:$C$875,0),1)*$C26 -> 0 | N26: =INDEX(Input!T$846:T$875,MATCH($Q26,Input!$C$846:$C$875,0),1)*$C26 -> 0 | O26: =INDEX(Input!U$846:U$875,MATCH($Q26,Input!$C$846:$C$875,0),1)*$C26 -> 0 | P26: =INDEX(Input!V$846:V$875,MATCH($Q26,Input!$C$846:$C$875,0),1)*$C26 -> 0 | Q26: Other Revenue
A27: 14 | B27: Sum | C27: =SUM(C14:C26) -> 86211.09 | D27: =SUM(D14:D26) -> 0 | E27: 0 | F27: 1691.963454 | G27: 19089.31283 | H27: 11604.10639 | I27: 14919.68897 | J27: 12857.47874 | K27: 11705.33877 | L27: 1454.729085 | M27: 196.7292266 | N27: 0 | O27: 12691.74254 | P27: 0
A29: Schedule 14
A30: Allocation of Cost of Service
A31: ($ thousands)
C32: A | D32: B | E32: C | F32: D | G32: E | H32: F | I32: G | J32: H | K32: I | L32: J | M32: K
B33: Classification | C33: Total | D33: Rate 1 - Residential | E33: Rate 1 - Commercial | F33: Rate 1 - Industrial | G33: Rate 2 | H33: Rate 3 | I33: Rate 4 | J33: Rate 5 | K33: Rate 6 - Allocated | L33: Rate 6 - Direct Assigned | M33: Allocation Factor
A34: 1 | B34: Enbridge Demand | C34: =INDEX($D$27:$P$27,1,MATCH($B34,$D$13:$P$13,0)) -> 0 | D34: =INDEX(Input!J$882:J$911,MATCH($M34,Input!$C$882:$C$911,0),1)*$C34 -> 0 | E34: =INDEX(Input!K$882:K$911,MATCH($M34,Input!$C$882:$C$911,0),1)*$C34 -> 0 | F34: =INDEX(Input!L$882:L$911,MATCH($M34,Input!$C$882:$C$911,0),1)*$C34 -> 0 | G34: =INDEX(Input!M$882:M$911,MATCH($M34,Input!$C$882:$C$911,0),1)*$C34 -> 0 | H34: =INDEX(Input!N$882:N$911,MATCH($M34,Input!$C$882:$C$911,0),1)*$C34 -> 0 | I34: =INDEX(Input!O$882:O$911,MATCH($M34,Input!$C$882:$C$911,0),1)*$C34 -> 0 | J34: =INDEX(Input!P$882:P$911,MATCH($M34,Input!$C$882:$C$911,0),1)*$C34 -> 0 | K34: =INDEX(Input!Q$882:Q$911,MATCH($M34,Input!$C$882:$C$911,0),1)*$C34 -> 0 | L34: =INDEX(Input!R$882:R$911,MATCH($M34,Input!$C$882:$C$911,0),1)*$C34 -> 0 | M34: Coincident Peak
A35: 2 | B35: Enbridge Commodity | C35: 0 | D35: =INDEX(Input!J$882:J$911,MATCH($M35,Input!$C$882:$C$911,0),1)*$C35 -> 0 | E35: =INDEX(Input!K$882:K$911,MATCH($M35,Input!$C$882:$C$911,0),1)*$C35 -> 0 | F35: =INDEX(Input!L$882:L$911,MATCH($M35,Input!$C$882:$C$911,0),1)*$C35 -> 0 | G35: =INDEX(Input!M$882:M$911,MATCH($M35,Input!$C$882:$C$911,0),1)*$C35 -> 0 | H35: =INDEX(Input!N$882:N$911,MATCH($M35,Input!$C$882:$C$911,0),1)*$C35 -> 0 | I35: =INDEX(Input!O$882:O$911,MATCH($M35,Input!$C$882:$C$911,0),1)*$C35 -> 0 | J35: =INDEX(Input!P$882:P$911,MATCH($M35,Input!$C$882:$C$911,0),1)*$C35 -> 0 | K35: =INDEX(Input!Q$882:Q$911,MATCH($M35,Input!$C$882:$C$911,0),1)*$C35 -> 0 | L35: =INDEX(Input!R$882:R$911,MATCH($M35,Input!$C$882:$C$911,0),1)*$C35 -> 0 | M35: Delivery Volume (excl. IGPC)
A36: 3 | B36: Delivery Commodity | C36: 1691.963454 | D36: =INDEX(Input!J$882:J$911,MATCH($M36,Input!$C$882:$C$911,0),1)*$C36 -> 1012.706791 | E36: =INDEX(Input!K$882:K$911,MATCH($M36,Input!$C$882:$C$911,0),1)*$C36 -> 288.2801667 | F36: =INDEX(Input!L$882:L$911,MATCH($M36,Input!$C$882:$C$911,0),1)*$C36 -> 103.5789408 | G36: =INDEX(Input!M$882:M$911,MATCH($M36,Input!$C$882:$C$911,0),1)*$C36 -> 76.07997741 | H36: =INDEX(Input!N$882:N$911,MATCH($M36,Input!$C$882:$C$911,0),1)*$C36 -> 102.2995775 | I36: =INDEX(Input!O$882:O$911,MATCH($M36,Input!$C$882:$C$911,0),1)*$C36 -> 68.2720012 | J36: =INDEX(Input!P$882:P$911,MATCH($M36,Input!$C$882:$C$911,0),1)*$C36 -> 40.74599936 | K36: =INDEX(Input!Q$882:Q$911,MATCH($M36,Input!$C$882:$C$911,0),1)*$C36 -> 0 | L36: =INDEX(Input!R$882:R$911,MATCH($M36,Input!$C$882:$C$911,0),1)*$C36 -> 0 | M36: Delivery Volume (excl. IGPC)
A37: 4 | B37: Delivery Demand | C37: 19089.31283 | D37: =INDEX(Input!J$882:J$911,MATCH($M37,Input!$C$882:$C$911,0),1)*$C37 -> 11284.29155 | E37: =INDEX(Input!K$882:K$911,MATCH($M37,Input!$C$882:$C$911,0),1)*$C37 -> 3270.307151 | F37: =INDEX(Input!L$882:L$911,MATCH($M37,Input!$C$882:$C$911,0),1)*$C37 -> 759.0884395 | G37: =INDEX(Input!M$882:M$911,MATCH($M37,Input!$C$882:$C$911,0),1)*$C37 -> 656.5444406 | H37: =INDEX(Input!N$882:N$911,MATCH($M37,Input!$C$882:$C$911,0),1)*$C37 -> 1202.780227 | I37: =INDEX(Input!O$882:O$911,MATCH($M37,Input!$C$882:$C$911,0),1)*$C37 -> 904.4255853 | J37: =INDEX(Input!P$882:P$911,MATCH($M37,Input!$C$882:$C$911,0),1)*$C37 -> 1011.875432 | K37: =INDEX(Input!Q$882:Q$911,MATCH($M37,Input!$C$882:$C$911,0),1)*$C37 -> 0 | L37: =INDEX(Input!R$882:R$911,MATCH($M37,Input!$C$882:$C$911,0),1)*$C37 -> 0 | M37: Average of CP/NCP
A38: 5 | B38: Weighted Customer Services | C38: 11604.10639 | D38: =INDEX(Input!J$882:J$911,MATCH($M38,Input!$C$882:$C$911,0),1)*$C38 -> 9278.93976 | E38: =INDEX(Input!K$882:K$911,MATCH($M38,Input!$C$882:$C$911,0),1)*$C38 -> 864.9917595 | F38: =INDEX(Input!L$882:L$911,MATCH($M38,Input!$C$882:$C$911,0),1)*$C38 -> 340.1930853 | G38: =INDEX(Input!M$882:M$911,MATCH($M38,Input!$C$882:$C$911,0),1)*$C38 -> 545.2290298 | H38: =INDEX(Input!N$882:N$911,MATCH($M38,Input!$C$882:$C$911,0),1)*$C38 -> 68.52130326 | I38: =INDEX(Input!O$882:O$911,MATCH($M38,Input!$C$882:$C$911,0),1)*$C38 -> 428.1711707 | J38: =INDEX(Input!P$882:P$911,MATCH($M38,Input!$C$882:$C$911,0),1)*$C38 -> 62.44822789 | K38: =INDEX(Input!Q$882:Q$911,MATCH($M38,Input!$C$882:$C$911,0),1)*$C38 -> 15.61205697 | L38: =INDEX(Input!R$882:R$911,MATCH($M38,Input!$C$882:$C$911,0),1)*$C38 -> 0 | M38: Weighted Customers Services
A39: 6 | B39: Weighted Customer Meters | C39: 14919.68897 | D39: =INDEX(Input!J$882:J$911,MATCH($M39,Input!$C$882:$C$911,0),1)*$C39 -> 10242.94622 | E39: =INDEX(Input!K$882:K$911,MATCH($M39,Input!$C$882:$C$911,0),1)*$C39 -> 1930.986719 | F39: =INDEX(Input!L$882:L$911,MATCH($M39,Input!$C$882:$C$911,0),1)*$C39 -> 522.3297556 | G39: =INDEX(Input!M$882:M$911,MATCH($M39,Input!$C$882:$C$911,0),1)*$C39 -> 890.3646519 | H39: =INDEX(Input!N$882:N$911,MATCH($M39,Input!$C$882:$C$911,0),1)*$C39 -> 223.6436271 | I39: =INDEX(Input!O$882:O$911,MATCH($M39,Input!$C$882:$C$911,0),1)*$C39 -> 880.8183875 | J39: =INDEX(Input!P$882:P$911,MATCH($M39,Input!$C$882:$C$911,0),1)*$C39 -> 182.879691 | K39: =INDEX(Input!Q$882:Q$911,MATCH($M39,Input!$C$882:$C$911,0),1)*$C39 -> 45.71992274 | L39: =INDEX(Input!R$882:R$911,MATCH($M39,Input!$C$882:$C$911,0),1)*$C39 -> 0 | M39: Weighted Customers Meters
A40: 7 | B40: Weighted Customer Billing | C40: 12857.47874 | D40: =INDEX(Input!J$882:J$911,MATCH($M40,Input!$C$882:$C$911,0),1)*$C40 -> 11890.30634 | E40: =INDEX(Input!K$882:K$911,MATCH($M40,Input!$C$882:$C$911,0),1)*$C40 -> 661.6887836 | F40: =INDEX(Input!L$882:L$911,MATCH($M40,Input!$C$882:$C$911,0),1)*$C40 -> 91.08266657 | G40: =INDEX(Input!M$882:M$911,MATCH($M40,Input!$C$882:$C$911,0),1)*$C40 -> 66.97254895 | H40: =INDEX(Input!N$882:N$911,MATCH($M40,Input!$C$882:$C$911,0),1)*$C40 -> 52.90656436 | I40: =INDEX(Input!O$882:O$911,MATCH($M40,Input!$C$882:$C$911,0),1)*$C40 -> 50.8991372 | J40: =INDEX(Input!P$882:P$911,MATCH($M40,Input!$C$882:$C$911,0),1)*$C40 -> 34.80493544 | K40: =INDEX(Input!Q$882:Q$911,MATCH($M40,Input!$C$882:$C$911,0),1)*$C40 -> 8.817760727 | L40: =INDEX(Input!R$882:R$911,MATCH($M40,Input!$C$882:$C$911,0),1)*$C40 -> 0 | M40: Weighted Customers Billing
A41: 8 | B41: Unweighted Customer | C41: 11705.33877 | D41: =INDEX(Input!J$882:J$911,MATCH($M41,Input!$C$882:$C$911,0),1)*$C41 -> 10894.13842 | E41: =INDEX(Input!K$882:K$911,MATCH($M41,Input!$C$882:$C$911,0),1)*$C41 -> 606.2526056 | F41: =INDEX(Input!L$882:L$911,MATCH($M41,Input!$C$882:$C$911,0),1)*$C41 -> 83.45177567 | G41: =INDEX(Input!M$882:M$911,MATCH($M41,Input!$C$882:$C$911,0),1)*$C41 -> 61.36159975 | H41: =INDEX(Input!N$882:N$911,MATCH($M41,Input!$C$882:$C$911,0),1)*$C41 -> 7.36339197 | I41: =INDEX(Input!O$882:O$911,MATCH($M41,Input!$C$882:$C$911,0),1)*$C41 -> 46.63481581 | J41: =INDEX(Input!P$882:P$911,MATCH($M41,Input!$C$882:$C$911,0),1)*$C41 -> 4.90892798 | K41: =INDEX(Input!Q$882:Q$911,MATCH($M41,Input!$C$882:$C$911,0),1)*$C41 -> 1.227231995 | L41: =INDEX(Input!R$882:R$911,MATCH($M41,Input!$C$882:$C$911,0),1)*$C41 -> 0 | M41: Average Customers
A42: 9 | B42: Bad Debt & Collection | C42: 1454.729085 | D42: =INDEX(Input!J$882:J$911,MATCH($M42,Input!$C$882:$C$911,0),1)*$C42 -> 1369.163818 | E42: =INDEX(Input!K$882:K$911,MATCH($M42,Input!$C$882:$C$911,0),1)*$C42 -> 74.93289665 | F42: =INDEX(Input!L$882:L$911,MATCH($M42,Input!$C$882:$C$911,0),1)*$C42 -> 10.63237047 | G42: =INDEX(Input!M$882:M$911,MATCH($M42,Input!$C$882:$C$911,0),1)*$C42 -> 0 | H42: =INDEX(Input!N$882:N$911,MATCH($M42,Input!$C$882:$C$911,0),1)*$C42 -> 0 | I42: =INDEX(Input!O$882:O$911,MATCH($M42,Input!$C$882:$C$911,0),1)*$C42 -> 0 | J42: =INDEX(Input!P$882:P$911,MATCH($M42,Input!$C$882:$C$911,0),1)*$C42 -> 0 | K42: =INDEX(Input!Q$882:Q$911,MATCH($M42,Input!$C$882:$C$911,0),1)*$C42 -> 0 | L42: =INDEX(Input!R$882:R$911,MATCH($M42,Input!$C$882:$C$911,0),1)*$C42 -> 0 | M42: Security Deposit
A43: 10 | B43: LEAP Funding | C43: 196.7292266 | D43: =INDEX(Input!J$882:J$911,MATCH($M43,Input!$C$882:$C$911,0),1)*$C43 -> 127.25772 | E43: =INDEX(Input!K$882:K$911,MATCH($M43,Input!$C$882:$C$911,0),1)*$C43 -> 21.64161121 | F43: =INDEX(Input!L$882:L$911,MATCH($M43,Input!$C$882:$C$911,0),1)*$C43 -> 6.72617477 | G43: =INDEX(Input!M$882:M$911,MATCH($M43,Input!$C$882:$C$911,0),1)*$C43 -> 4.700626661 | H43: =INDEX(Input!N$882:N$911,MATCH($M43,Input!$C$882:$C$911,0),1)*$C43 -> 5.08846052 | I43: =INDEX(Input!O$882:O$911,MATCH($M43,Input!$C$882:$C$911,0),1)*$C43 -> 4.221489408 | J43: =INDEX(Input!P$882:P$911,MATCH($M43,Input!$C$882:$C$911,0),1)*$C43 -> 1.944841545 | K43: =INDEX(Input!Q$882:Q$911,MATCH($M43,Input!$C$882:$C$911,0),1)*$C43 -> 25.14830249 | L43: =INDEX(Input!R$882:R$911,MATCH($M43,Input!$C$882:$C$911,0),1)*$C43 -> 0 | M43: Distribution Revenue
A44: 11 | B44: Direct Assignment to IGPC | C44: 12691.74254 | D44: =INDEX(Input!J$882:J$911,MATCH($M44,Input!$C$882:$C$911,0),1)*$C44 -> 0 | E44: =INDEX(Input!K$882:K$911,MATCH($M44,Input!$C$882:$C$911,0),1)*$C44 -> 0 | F44: =INDEX(Input!L$882:L$911,MATCH($M44,Input!$C$882:$C$911,0),1)*$C44 -> 0 | G44: =INDEX(Input!M$882:M$911,MATCH($M44,Input!$C$882:$C$911,0),1)*$C44 -> 0 | H44: =INDEX(Input!N$882:N$911,MATCH($M44,Input!$C$882:$C$911,0),1)*$C44 -> 0 | I44: =INDEX(Input!O$882:O$911,MATCH($M44,Input!$C$882:$C$911,0),1)*$C44 -> 0 | J44: =INDEX(Input!P$882:P$911,MATCH($M44,Input!$C$882:$C$911,0),1)*$C44 -> 0 | K44: =INDEX(Input!Q$882:Q$911,MATCH($M44,Input!$C$882:$C$911,0),1)*$C44 -> 0 | L44: =INDEX(Input!R$882:R$911,MATCH($M44,Input!$C$882:$C$911,0),1)*$C44 -> 12691.74254 | M44: Direct Assignment to IGPC
A45: 12 | B45: Sum | C45: =SUM(C34:C44) -> 86211.09 | D45: 56099.75062 | E45: 7719.081693 | F45: 1917.083209 | G45: 2301.252875 | H45: 1662.603152 | I45: 2383.442587 | J45: 1339.608055 | K45: 96.52527492 | L45: 12691.74254
A46: 13 | B46: Total Insurance Cost Allocated to Rate 6 | L46: =SUM(K45:L45) -> 12788.26781 | N46: 11102.6795 | O46: =L46-N46 -> 1685.58831
